{"text_format":"1","workbook":"xlsx","n_sheets":13,"sheets":["大学等基本情報","施設種別対応表","チェックリスト","鑑文","変更箇所の概要","大学等確認申請書（変更届）","Format_教員に関する調書","Format_実習施設等承諾書","Format_実習施設等の概要","Format_実習指導者に関する調書","Config","PullDown","Message"],"not_rendered":{"charts":0,"images":0,"macros":1,"external_links":6,"defined_names":42,"comments":5,"pivot_tables":0},"unopened":[],"bounds":{"document_bytes":16777216,"sheet_cells":100000,"rows_first":2000,"rows_last":500,"rows_between":2000,"halvings":0,"cell_chars":16384,"cell_head_chars":4096},"cells_cut":0,"cells_raw":0,"read":"whole","date_system":"1900"}

{"sheet":"大学等基本情報","index":0,"n_rows":23,"n_cols":3,"rows_kept":23,"cut":false,"hidden":false,"merged":[]}
[]
[null,"■大学等基本情報"]
[null,"学校種別"]
[null,"修業年限"]
[null,"通学/通信"]
[null,"地方区分"]
[null,"都道府県"]
[null,"大学等名"]
[null,"学部・学科・課程名"]
[null,"大学等所在地",{"$f":"'大学等確認申請書（変更届）'!E4","v":0}]
[null,"設置者－法人名",{"$f":"'大学等確認申請書（変更届）'!I5","v":0}]
[null,"設置者－住所",{"$f":"'大学等確認申請書（変更届）'!I6","v":0}]
[null,"設置者－代表名",{"$f":"'大学等確認申請書（変更届）'!I7","v":0}]
[null,"設置年月日",{"$f":"'大学等確認申請書（変更届）'!G8&'大学等確認申請書（変更届）'!I8 &  '大学等確認申請書（変更届）'!K8 & '大学等確認申請書（変更届）'!M8 &  '大学等確認申請書（変更届）'!O8 & '大学等確認申請書（変更届）'!Q8 &  '大学等確認申請書（変更届）'!S8","v":"年月日"}]
[null,"1学年の定員(学則等に規定された定員)",{"$f":"'大学等確認申請書（変更届）'!E10","v":0}]
[null,"1学年の定員のうち精神養成課程の定員"]
[null,"学校等の長の氏名",{"$f":"'大学等確認申請書（変更届）'!E11","v":0}]
[null,"事務担当－郵便番号"]
[null,"事務担当－住所"]
[null,"事務担当－部署名"]
[null,"事務担当－電話番号"]
[null,"事務担当－Eメールアドレス"]
[null,"事務担当－担当者氏名(主担当)"]

{"sheet":"施設種別対応表","index":1,"n_rows":19,"n_cols":6,"rows_kept":19,"cut":false,"hidden":false,"merged":[[0,1,0,5],[1,3,1,4],[3,3,18,3]]}
[null,"施設種別プルダウン項目対応表"]
[null,"施設種別（プルダウン）","施設（事業）等種類\n（いずれも精神障害者に対してサービスを提供するものに限る）","参照",null,"備考"]
[null,"精神科病院等　※施設種別対応表参照","精神科病院等","○精神障害者の保健及び福祉に関する科目を定める省令（科目省令）","第一条第８項　第一項第二十二号に規定するソーシャルワーク実習(以下この項から第十一項までにおいて「ソーシャルワーク実習」という。)は、学生一人に対し、精神科病院等及び一以上の厚生労働大臣が別に定める施設又は事業のうちソーシャルワーク実習を行うのに適当なもの(以下「施設又は事業」という。)で実施するものとする。","申請上においては、精神科病院、医療法(昭和二十三年法律第二百五号)に規定する病院若しくは診療所(精神病床を有するもの又は同法第八条若しくは医療法施行令(昭和二十三年政令第三百二十六号)第四条の二の規定により精神科若しくは心療内科を担当診療科名として届け出ているものに限る。)(以下「精神科病院等」という。)として差し支えない。"]
[null,"市役所、区役所、町村役場","市役所、区役所、町村役場","○精神保健福祉士短期養成施設等及び精神保健福祉士一般養成施設等指定規則第三条第一項第十号及び精神障害者の保健及び福祉に関する科目を定める省令第一条第七項第八項の規定に基づき厚生労働大臣が別に定める施設及び事業（実習施設等告示）","一　市役所、区役所又は町村役場(精神障害者(障害者の日常生活及び社会生活を総合的に支援するための法律(平成十七年法律第百二十三号)第四条第一項に規定する精神障害者精神保健及び精神障害者福祉に関する法律(昭和二十五年法律第百二十三号)第五条に規定する精神障害者(発達障害者支援法(平成十六年法律第百六十七号)第二条第二項に規定する発達障害者を含み、知的障害者福祉法(昭和三十五年法律第三十七号)にいう知的障害者を除く。)をいう。以下同じ。)に対してサービスを提供する部署に限る。)","-"]
[null,"保健所、市町村保健センター","保健所、市町村保健センター",null,"二　地域保健法(昭和二十二年法律第百一号)に規定する保健所又は市町村保健センター","-"]
[null,"障害児通所支援事業等　※施設種別対応表参照","障害児通所支援事業、障害児相談支援事業を行う施設、児童自立生活援助事業を行う施設、乳児院、児童相談所、母子生活支援施設、児童養護施設、福祉型障害児入所施設、児童心理治療施設、児童自立支援施設、児童家庭支援センター",null,"三　児童福祉法(昭和二十二年法律第百六十四号)に規定する障害児通所支援事業(医療型児童発達支援を除く。)若しくは障害児相談支援事業を行う施設、児童自立生活援助事業を行う施設、乳児院、児童相談所、母子生活支援施設、児童養護施設、福祉型障害児入所施設、児童心理治療施設、児童自立支援施設又は児童家庭支援センター(いずれも精神障害者に対してサービスを提供するものに限る。)","-"]
[null,"精神保健福祉センター","精神保健福祉センター",null,"四　精神保健及び精神障害者福祉に関する法律(昭和二十五年法律第百二十三号)に規定する精神保健福祉センター","-"]
[null,"救護施設、更生施設","救護施設、更生施設",null,"五　生活保護法(昭和二十五年法律第百四十四号)に規定する救護施設又は更生施設(いずれも精神障害者に対してサービスを提供するものに限る。)","-"]
[null,"福祉に関する事務所","福祉に関する事務所",null,"六　社会福祉法(昭和二十六年法律第四十五号)に規定する福祉に関する事務所(精神障害者に対してサービスを提供するものに限る。)","-"]
[null,"知的障害者更生相談所","知的障害者更生相談所",null,"七　知的障害者福祉法(昭和三十五年法律第三十七号)に規定する知的障害者更生相談所(精神障害者に対してサービスを提供するものに限る。)","-"]
[null,"広域障害者職業センター等　※施設種別対応表参照","広域障害者職業センター、地域障害者職業センター、障害者就業・生活支援センター",null,"八　障害者の雇用の促進等に関する法律(昭和三十五年法律第百二十三号)に規定する広域障害者職業センター、地域障害者職業センター又は障害者就業・生活支援センター(いずれも精神障害者に対してサービスを提供するものに限る。)","-"]
[null,"地域包括支援センター","地域包括支援センター",null,"九　介護保険法(平成九年法律第百二十三号)に規定する地域包括支援センター(精神障害者に対してサービスを提供するものに限る。)","-"]
[null,"保護観察所、更生保護施設","保護観察所、更生保護施設",null,"十　法務省設置法(平成十一年法律第九十三号)に規定する保護観察所又は更生保護事業法(平成七年法律第八十六号)に規定する更生保護施設(精神障害者に対してサービスを提供するものに限る。)","-"]
[null,"ホームレス自立支援事業を実施する施設","ホームレス自立支援事業を実施する施設",null,"十一　ホームレスの自立の支援等に関する特別措置法(平成十四年法律第百五号)に規定するホームレス自立支援事業を実施する施設(精神障害者に対してサービスを提供するものに限る。)","-"]
[null,"発達障害者支援センター","発達障害者支援センター",null,"十二　発達障害者支援法(平成十六年法律第百六十七号)に規定する発達障害者支援センター(精神障害者に対してサービスを提供するものに限る。)","-"]
[null,"障害福祉サービス事業(生活介護等）※施設種別対応表参照","障害福祉サービス事業(生活介護、短期入所、重度障害者等包括支援、自立訓練、就労移行支援、就労継続支援、就労定着支援、自立生活援助、共同生活援助)、一般相談支援事業若しくは特定相談支援事業を行う施設、障害者支援施設、地域活動支援センター、福祉ホーム、基幹相談支援センター",null,"十三　障害者の日常生活及び社会生活を総合的に支援するための法律(平成十七年法律第百二十三号)に規定する障害福祉サービス事業(生活介護、短期入所、重度障害者等包括支援、自立訓練、就労移行支援、就労継続支援、就労定着支援、自立生活援助又は共同生活援助を行うものに限る。)、一般相談支援事業若しくは特定相談支援事業を行う施設、障害者支援施設、地域活動支援センター又は、福祉ホーム又は基幹相談支援センター(いずれも精神障害者に対してサービスを提供するものに限る。)","-"]
[null,"精神障害者が住み慣れた地域を拠点とし、本人の意向に即して、本人が充実した生活を送ることができるよう、関係機関の連携の下で、医療、福祉等の支援を行うという観点から、統合失調症を始めとする入院患者の減少及び地域生活への移行に向けた支援並びに地域生活を継続するための支援を推進する事業を実施する施設","精神障害者が住み慣れた地域を拠点とし、本人の意向に即して、本人が充実した生活を送ることができるよう、関係機関の連携の下で、医療、福祉等の支援を行うという観点から、統合失調症を始めとする入院患者の減少及び地域生活への移行に向けた支援並びに地域生活を継続するための支援を推進する事業を実施する施設",null,"十四　精神障害者が住み慣れた地域を拠点とし、本人の意向に即して、本人が充実した生活を送ることができるよう、関係機関の連携の下で、医療、福祉等の支援を行うという観点から、統合失調症を始めとする入院患者の減少及び地域生活への移行に向けた支援並びに地域生活を継続するための支援を推進する事業を実施する施設","-"]
[null,"いじめ、不登校、暴力行為、児童虐待など生徒指導上の課題に対応するため、教育分野に関する知識に加えて、社会福祉等の専門的な知識・技術を用いて、児童生徒の置かれた様々な環境に働きかけて支援を行うスクールソーシャルワーカーを配置し、教育相談体制を整備する事業を実施する施設","いじめ、不登校、暴力行為、児童虐待など生徒指導上の課題に対応するため、教育分野に関する知識に加えて、社会福祉等の専門的な知識・技術を用いて、児童生徒の置かれた様々な環境に働きかけて支援を行うスクールソーシャルワーカーを配置し、教育相談体制を整備する事業を実施する施設",null,"十五　いじめ、不登校、暴力行為、児童虐待など生徒指導上の課題に対応するため、教育分野に関する知識に加えて、社会福祉等の専門的な知識・技術を用いて、児童生徒の置かれた様々な環境に働きかけて支援を行うスクールソーシャルワーカーを配置し、教育相談体制を整備する事業を実施する施設","-"]
[null,"厚生労働大臣が認める施設又は事業　※要個別認定","前各号に掲げる施設又は事業に準ずる施設又は事業として厚生労働大臣が認めるもの",null,"十六　前各号に掲げる施設又は事業に準ずる施設又は事業として厚生労働大臣が認めるもの","別途、個別認定が必要となります。"]

{"sheet":"チェックリスト","index":2,"n_rows":14,"n_cols":12,"rows_kept":14,"cut":false,"hidden":false,"merged":[[0,1,0,2],[1,1,1,2],[2,1,2,2]]}
["不備チェック（大学等）完了日時"]
["不備チェック（本省）完了日時"]
["審査完了日時"]
["■操作方法（大学等向け）"]
["　① 本変更届の必要情報を入力した後、右側の「不備チェック実行（大学等）」を押下して下さい。"]
["　　　変更届の記入方法は、別途作成された「大学等確認変更届の記載マニュアル」を参照願います。"]
["　② 以下表のチェック結果がNGとなっている行について、書類と頁番号に対して、チェック事項が満たされているか、備考を参考に修正の頂き、再度「不備チェック（大学等）」を押下して下さい。"]
["　　　チェック結果が確認となった行は、提出前によくご確認下さい。"]
["大学等提出欄",null,null,null,null,null,"本省確認欄",null,"非表示"]
["書類名","氏名・施設名等","頁番号","チェック事項","チェック結果","備考","本省チェック結果","備考（メモ等）","CheckLogicID_大学","CheckLogicID_本省","帳票No","処理No"]
["鑑文","-",0,"必須項目は入力されているか",null,"-",null,null,0,null,0,0]
["変更箇所の概要","-",0,"必須項目は入力されているか\n　・「変更」の場合：「旧」「新」の両方に値が入力されているか\n　・「削除」の場合：「旧」に削除対象が入力されているか\n　・「追加」の場合：「新」に追加対象が入力されているか",null,null,null,null,1,null,1,1]
["大学等確認申請書（変更届）","-",0,"必須項目は入力されているか",null,"-",null,null,2,null,2,2]
["大学等確認申請書（変更届）","-",0,"開講科目が個別の照会において認められた場合には、厚生労働省からの通知された文書の文書番号を併せて記入しているか",null,"ご提出頂く前に、再度ご確認ください。\n※審査中に、修了番号や文章番号等が有効か確認できなかった場合、証明書（写し）の提出を求める場合がございます。","注意","指定科目等に係る開講科目の名称DBでは、以下科目名称の有効性を確認できませんでした。\nお手数ですが、通達文章の写しを入手頂き、審査して下さい。\n\n■指定科目等の名称\n\r\n社会保障",99,3,2,3]

{"sheet":"鑑文","index":3,"n_rows":15,"n_cols":78,"rows_kept":15,"cut":false,"hidden":false,"merged":[[3,16,3,20],[2,16,2,20],[32,1,32,21],[31,1,31,21],[11,3,11,18],[13,1,13,21],[8,13,8,19],[9,14,9,20],[5,1,6,6]]}
[null,null,null,null,null,null,null,null,null,null,null,null,null,null,null,null,null,null,null,null,null,null,null,null,null,null,null,null,null,null,null,null,null,null,null,null,null,null,null,null,null,null,null,null,null,null,null,null,null,null,null,null,null,null,null,null,null,null,null,null,null,null,null,null,null,null,null,null,null,null,null,null,null,null,null,null,null,"■プルダウン"]
[null,null,null,null,null,null,null,null,null,null,null,null,null,null,null,null,null,null,null,null,null,null,null,null,null,null,null,null,null,null,null,null,null,null,null,null,null,null,null,null,null,null,null,null,null,null,null,null,null,null,null,null,null,null,null,null,null,null,null,null,null,null,null,null,null,null,null,null,null,null,null,null,null,null,null,null,null,"文部科学大臣　殿\n厚生労働大臣　殿"]
[null,null,null,null,null,null,null,null,null,null,null,null,null,null,null,null,null,null,null,null,null,null,null,null,null,null,null,null,null,null,null,null,null,null,null,null,null,null,null,null,null,null,null,null,null,null,null,null,null,null,null,null,null,null,null,null,null,null,null,null,null,null,null,null,null,null,null,null,null,null,null,null,null,null,null,null,null,"厚生労働大臣　殿"]
[]
[null,null,null,null,null,null,null,null,null,null,null,null,null,null,null,null,null,null,null,null,null,null,null,null,null,null,null,null,null,null,null,null,null,null,null,null,null,null,null,null,null,null,null,null,null,null,null,null,null,null,null,null,null,null,null,null,null,null,null,null,null,null,null,null,null,null,null,null,null,null,null,null,null,null,null,null,null,"大学等確認申請書"]
[null,null,null,null,null,null,null,null,null,null,null,null,null,null,null,null,null,null,null,null,null,null,null,null,null,null,null,null,null,null,null,null,null,null,null,null,null,null,null,null,null,null,null,null,null,null,null,null,null,null,null,null,null,null,null,null,null,null,null,null,null,null,null,null,null,null,null,null,null,null,null,null,null,null,null,null,null,"大学等確認変更届"]
[]
[]
[]
[]
[]
[null,null,null,"大学等確認変更届"]
[]
[null,"　標記について、精神障害者の保健及び福祉に関する科目を定める省令第４条第１項の規定に"]
[null,"基づき届出ます。"]

{"sheet":"変更箇所の概要","index":4,"n_rows":82,"n_cols":81,"rows_kept":82,"cut":false,"hidden":false,"merged":[[28,2,28,3],[28,4,28,5],[28,6,28,8],[28,10,28,15],[28,17,28,22],[78,2,78,3],[80,2,80,3],[82,2,82,22],[48,2,48,3],[48,10,48,15],[48,17,48,22],[49,2,49,3],[49,10,49,15],[49,17,49,22],[53,2,53,3],[53,10,53,15],[53,17,53,22],[62,10,62,22],[61,2,61,3],[65,2,65,3],[66,10,66,22],[69,2,69,3],[70,10,70,22],[74,2,74,3],[76,2,76,3],[52,2,52,3],[52,10,52,15],[52,17,52,22],[50,2,50,3],[57,2,57,3],[58,10,58,22],[43,4,43,5],[41,2,41,3],[41,10,41,15],[41,17,41,22],[41,4,41,5],[51,2,51,3],[51,10,51,15],[46,4,46,5],[46,6,46,8],[47,4,47,5],[48,4,48,5],[49,4,49,5],[51,17,51,22],[47,2,47,3],[47,10,47,15],[50,10,50,15],[50,17,50,22],[43,10,43,15],[43,17,43,22],[40,6,40,8],[41,6,41,8],[43,6,43,8],[42,2,42,3],[42,4,42,5],[42,6,42,8],[42,10,42,15],[33,2,33,3],[33,4,33,5],[33,6,33,8],[33,10,33,15],[33,17,33,22],[12,2,12,3],[12,4,12,8],[12,10,12,15],[12,17,12,22],[18,10,18,15],[18,17,18,22],[21,10,21,15],[21,17,21,22],[21,2,21,3],[18,2,18,3],[18,4,18,8],[14,2,14,3],[14,4,14,8],[14,10,14,15],[14,17,14,22],[13,2,13,3],[13,4,13,8],[13,10,13,15],[13,17,13,22],[39,10,39,15],[39,17,39,22],[38,10,38,15],[38,17,38,22],[27,2,27,3],[42,17,42,22],[27,4,27,5],[27,6,27,8],[40,10,40,15],[40,17,40,22],[40,2,40,3],[31,2,31,3],[31,10,31,15],[31,17,31,22],[31,4,31,5],[31,6,31,8],[32,2,32,3],[32,4,32,5],[32,6,32,8],[32,10,32,15],[32,17,32,22],[35,10,35,15],[35,17,35,22],[34,2,34,3],[34,4,34,5],[34,6,34,8],[34,10,34,15],[34,17,34,22],[37,2,37,3],[37,4,37,5],[37,6,37,8],[37,10,37,15],[37,17,37,22],[36,2,36,3],[36,4,36,5],[36,6,36,8],[36,10,36,15],[36,17,36,22],[47,17,47,22],[43,2,43,3],[46,10,46,15],[46,17,46,22],[24,4,24,5],[25,4,25,5],[26,4,26,5],[16,2,16,3],[16,4,16,8],[16,10,16,15],[16,17,16,22],[27,10,27,15],[27,17,27,22],[24,10,24,15],[24,17,24,22],[25,2,25,3],[25,10,25,15],[25,17,25,22],[24,2,24,3],[26,2,26,3],[26,10,26,15],[26,17,26,22],[17,17,17,22],[22,6,22,8],[23,6,23,8],[24,6,24,8],[25,6,25,8],[26,6,26,8],[15,17,15,22],[23,2,23,3],[23,10,23,15],[23,17,23,22],[22,2,22,3],[22,10,22,15],[22,17,22,22],[21,4,21,5],[21,6,21,8],[22,4,22,5],[23,4,23,5],[17,10,17,15],[17,2,17,3],[17,4,17,8],[15,2,15,3],[15,4,15,8],[15,10,15,15],[53,4,53,5],[47,6,47,8],[48,6,48,8],[49,6,49,8],[50,6,50,8],[51,6,51,8],[52,6,52,8],[53,6,53,8],[35,2,35,3],[35,4,35,5],[35,6,35,8],[52,4,52,5],[46,2,46,3],[39,2,39,3],[39,4,39,5],[39,6,39,8],[50,4,50,5],[51,4,51,5],[38,2,38,3],[38,4,38,5],[38,6,38,8],[40,4,40,5]]}
[null,null,null,null,null,null,null,null,null,null,null,null,null,null,null,null,null,null,null,null,null,null,null,null,null,null,null,null,null,null,null,null,null,null,null,null,null,null,null,null,null,null,null,null,null,null,null,null,null,null,null,null,null,null,null,null,null,null,null,null,null,null,null,null,null,null,null,null,null,null,null,null,null,null,null,null,null,"■処理変数保持エリア"]
[null,null,null,null,null,null,null,null,null,null,null,null,null,null,null,null,null,null,null,null,null,null,null,null,null,null,null,null,null,null,null,null,null,null,null,null,null,null,null,null,null,null,null,null,null,null,null,null,null,null,null,null,null,null,null,null,null,null,null,null,null,null,null,null,null,null,null,null,null,null,null,null,null,null,null,null,null,"大学等確認変更届行数",6,{"$f":"CA2","v":6}]
[null,null,null,null,null,null,null,null,null,null,null,null,null,null,null,null,null,null,null,null,null,null,null,null,null,null,null,null,null,null,null,null,null,null,null,null,null,null,null,null,null,null,null,null,null,null,null,null,null,null,null,null,null,null,null,null,null,null,null,null,null,null,null,null,null,null,null,null,null,null,null,null,null,null,null,null,null,"教員行数",7,{"$f":"SUM($CA$3,$CA$2)-3","v":10}]
[null,null,null,null,null,null,null,null,null,null,null,null,null,null,null,null,null,null,null,null,null,null,null,null,null,null,null,null,null,null,null,null,null,null,null,null,null,null,null,null,null,null,null,null,null,null,null,null,null,null,null,null,null,null,null,null,null,null,null,null,null,null,null,null,null,null,null,null,null,null,null,null,null,null,null,null,null,"実習施設行数",12,{"$f":"SUM($CA$4,$CA$2,$CA$3)-7","v":18}]
[null,null,null,null,null,null,null,null,null,null,null,null,null,null,null,null,null,null,null,null,null,null,null,null,null,null,null,null,null,null,null,null,null,null,null,null,null,null,null,null,null,null,null,null,null,null,null,null,null,null,null,null,null,null,null,null,null,null,null,null,null,null,null,null,null,null,null,null,null,null,null,null,null,null,null,null,null,"実習指導者行数",7,{"$f":"SUM($CA$5,$CA$2,$CA$3,$CA$4)-14","v":18}]
[null,null,null,null,null,null,null,null,null,null,null,null,null,null,null,null,null,null,null,null,null,null,null,null,null,null,null,null,null,null,null,null,null,null,null,null,null,null,null,null,null,null,null,null,null,null,null,null,null,null,null,null,null,null,null,null,null,null,null,null,null,null,null,null,null,null,null,null,null,null,null,null,null,null,null,null,null,"提出書類一覧行数",8,{"$f":"SUM($CA$5,$CA$2,$CA$3,$CA$4,CA6)-21","v":19}]
[]
[]
[]
[]
[null,"○変更箇所の概要"]
[null,null,"大学等確認変更届",null,null,null,null,null,null,null,null,null,null,null,null,null,null,null,null,null,null,null,null,null,null,"■判定エリア"]
[null,null,"変更区分",null,"変更箇所",null,null,null,null,null,"旧",null,null,null,null,null,null,"新"]
[null,null,null,null,null,null,null,null,null,null,null,null,null,null,null,null,"→",null,null,null,null,null,null,null,null,{"$f":"IF($C14=\"\",\"空白\",IF(AND($C14=\"変更\",$E14<>\"\",$K14<>\"\",$R14<>\"\"),\"変更OK\",IF(AND($C14=\"追加\",$E14<>\"\",$R14<>\"\"),\"追加OK\",IF(AND($C14=\"削除\",$E14<>\"\",$K14<>\"\"),\"削除OK\",\"NG\"))))","v":"空白"},null,null,null,null,null,null,null,null,null,null,null,null,null,null,null,null,null,null,null,null,null,null,null,null,null,null,null,null,null,null,null,null,null,null,null,null,null,null,null,null,null,null,null,null,null,null,null,null,null,null,null,null,null,null,"大学等確認変更届"]
[null,null,null,null,null,null,null,null,null,null,null,null,null,null,null,null,"→",null,null,null,null,null,null,null,null,"空白",null,null,null,null,null,null,null,null,null,null,null,null,null,null,null,null,null,null,null,null,null,null,null,null,null,null,null,null,null,null,null,null,null,null,null,null,null,null,null,null,null,null,null,null,null,null,null,null,null,null,null,null,null,null,"大学等確認変更届"]
[null,null,null,null,null,null,null,null,null,null,null,null,null,null,null,null,"→",null,null,null,null,null,null,null,null,"空白",null,null,null,null,null,null,null,null,null,null,null,null,null,null,null,null,null,null,null,null,null,null,null,null,null,null,null,null,null,null,null,null,null,null,null,null,null,null,null,null,null,null,null,null,null,null,null,null,null,null,null,null,null,null,"大学等確認変更届"]
[null,null,null,null,null,null,null,null,null,null,null,null,null,null,null,null,"→",null,null,null,null,null,null,null,null,"空白",null,null,null,null,null,null,null,null,null,null,null,null,null,null,null,null,null,null,null,null,null,null,null,null,null,null,null,null,null,null,null,null,null,null,null,null,null,null,null,null,null,null,null,null,null,null,null,null,null,null,null,null,null,null,"大学等確認変更届"]
[null,null,null,null,null,null,null,null,null,null,null,null,null,null,null,null,"→",null,null,null,null,null,null,null,null,"空白",null,null,null,null,null,null,null,null,null,null,null,null,null,null,null,null,null,null,null,null,null,null,null,null,null,null,null,null,null,null,null,null,null,null,null,null,null,null,null,null,null,null,null,null,null,null,null,null,null,null,null,null,null,null,"大学等確認変更届"]
[null,null,null,null,null,null,null,null,null,null,null,null,null,null,null,null,"→",null,null,null,null,null,null,null,null,"空白",null,null,null,null,null,null,null,null,null,null,null,null,null,null,null,null,null,null,null,null,null,null,null,null,null,null,null,null,null,null,null,null,null,null,null,null,null,null,null,null,null,null,null,null,null,null,null,null,null,null,null,null,null,null,"大学等確認変更届"]
[]
[null,null,"実習演習科目担当教員"]
[null,null,"変更区分",null,"教員調書頁番号",null,"変更箇所",null,null,null,"旧",null,null,null,null,null,null,"新"]
[null,null,null,null,"",null,null,null,null,null,null,null,null,null,null,null,null,null,null,null,null,null,null,null,null,{"$f":"IF($C23=\"\",\"空白\",IF(AND($C23=\"変更\",$E23<>\"\",$K23<>\"\",$R23<>\"\"),\"変更OK\",IF(AND($C23=\"追加\",$E23<>\"\",$R23<>\"\"),\"追加OK\",IF(AND($C23=\"削除\",$E23<>\"\",$K23<>\"\"),\"削除OK\",\"NG\"))))","v":"空白"},null,null,null,null,null,null,null,null,null,null,null,null,null,null,null,null,null,null,null,null,null,null,null,null,null,null,null,null,null,null,null,null,null,null,null,null,null,null,null,null,null,null,null,null,null,null,null,null,null,null,null,null,null,null,"実習演習科目担当教員"]
[null,null,null,null,null,null,null,null,null,null,null,null,null,null,null,null,"→",null,null,null,null,null,null,null,null,"空白",null,null,null,null,null,null,null,null,null,null,null,null,null,null,null,null,null,null,null,null,null,null,null,null,null,null,null,null,null,null,null,null,null,null,null,null,null,null,null,null,null,null,null,null,null,null,null,null,null,null,null,null,null,null,"実習演習科目担当教員"]
[null,null,null,null,null,null,null,null,null,null,null,null,null,null,null,null,"→",null,null,null,null,null,null,null,null,"空白",null,null,null,null,null,null,null,null,null,null,null,null,null,null,null,null,null,null,null,null,null,null,null,null,null,null,null,null,null,null,null,null,null,null,null,null,null,null,null,null,null,null,null,null,null,null,null,null,null,null,null,null,null,null,"実習演習科目担当教員"]
[null,null,null,null,null,null,null,null,null,null,null,null,null,null,null,null,"→",null,null,null,null,null,null,null,null,"空白",null,null,null,null,null,null,null,null,null,null,null,null,null,null,null,null,null,null,null,null,null,null,null,null,null,null,null,null,null,null,null,null,null,null,null,null,null,null,null,null,null,null,null,null,null,null,null,null,null,null,null,null,null,null,"実習演習科目担当教員"]
[null,null,null,null,null,null,null,null,null,null,null,null,null,null,null,null,"→",null,null,null,null,null,null,null,null,"空白",null,null,null,null,null,null,null,null,null,null,null,null,null,null,null,null,null,null,null,null,null,null,null,null,null,null,null,null,null,null,null,null,null,null,null,null,null,null,null,null,null,null,null,null,null,null,null,null,null,null,null,null,null,null,"実習演習科目担当教員"]
[null,null,null,null,null,null,null,null,null,null,null,null,null,null,null,null,"→",null,null,null,null,null,null,null,null,"空白",null,null,null,null,null,null,null,null,null,null,null,null,null,null,null,null,null,null,null,null,null,null,null,null,null,null,null,null,null,null,null,null,null,null,null,null,null,null,null,null,null,null,null,null,null,null,null,null,null,null,null,null,null,null,"実習演習科目担当教員"]
[null,null,null,null,null,null,null,null,null,null,null,null,null,null,null,null,"→",null,null,null,null,null,null,null,null,"空白",null,null,null,null,null,null,null,null,null,null,null,null,null,null,null,null,null,null,null,null,null,null,null,null,null,null,null,null,null,null,null,null,null,null,null,null,null,null,null,null,null,null,null,null,null,null,null,null,null,null,null,null,null,null,"実習演習科目担当教員"]
[]
[null,null,"実習施設"]
[null,null,"変更区分",null,"施設番号",null,"変更箇所",null,null,null,"旧",null,null,null,null,null,null,"新"]
[null,null,null,null,null,null,null,null,null,null,null,null,null,null,null,null,"→",null,null,null,null,null,null,null,null,{"$f":"IF($C33=\"\",\"空白\",IF(AND($C33=\"変更\",$E33<>\"\",$K33<>\"\",$G33<>\"\",$R33<>\"\"),\"変更OK\",IF(AND($C33=\"追加\",$E33<>\"\",$R33<>\"\"),\"追加OK\",IF(AND($C33=\"削除\",$E33<>\"\",$K33<>\"\"),\"削除OK\",\"NG\"))))","v":"空白"},null,null,null,null,null,null,null,null,null,null,null,null,null,null,null,null,null,null,null,null,null,null,null,null,null,null,null,null,null,null,null,null,null,null,null,null,null,null,null,null,null,null,null,null,null,null,null,null,null,null,null,null,null,null,"実習施設"]
[null,null,null,null,null,null,null,null,null,null,null,null,null,null,null,null,"→",null,null,null,null,null,null,null,null,"空白",null,null,null,null,null,null,null,null,null,null,null,null,null,null,null,null,null,null,null,null,null,null,null,null,null,null,null,null,null,null,null,null,null,null,null,null,null,null,null,null,null,null,null,null,null,null,null,null,null,null,null,null,null,null,"実習施設"]
[null,null,null,null,null,null,null,null,null,null,null,null,null,null,null,null,"→",null,null,null,null,null,null,null,null,"空白",null,null,null,null,null,null,null,null,null,null,null,null,null,null,null,null,null,null,null,null,null,null,null,null,null,null,null,null,null,null,null,null,null,null,null,null,null,null,null,null,null,null,null,null,null,null,null,null,null,null,null,null,null,null,"実習施設"]
[null,null,null,null,null,null,null,null,null,null,null,null,null,null,null,null,"→",null,null,null,null,null,null,null,null,"空白",null,null,null,null,null,null,null,null,null,null,null,null,null,null,null,null,null,null,null,null,null,null,null,null,null,null,null,null,null,null,null,null,null,null,null,null,null,null,null,null,null,null,null,null,null,null,null,null,null,null,null,null,null,null,"実習施設"]
[null,null,null,null,null,null,null,null,null,null,null,null,null,null,null,null,"→",null,null,null,null,null,null,null,null,"空白",null,null,null,null,null,null,null,null,null,null,null,null,null,null,null,null,null,null,null,null,null,null,null,null,null,null,null,null,null,null,null,null,null,null,null,null,null,null,null,null,null,null,null,null,null,null,null,null,null,null,null,null,null,null,"実習施設"]
[null,null,null,null,null,null,null,null,null,null,null,null,null,null,null,null,"→",null,null,null,null,null,null,null,null,"空白",null,null,null,null,null,null,null,null,null,null,null,null,null,null,null,null,null,null,null,null,null,null,null,null,null,null,null,null,null,null,null,null,null,null,null,null,null,null,null,null,null,null,null,null,null,null,null,null,null,null,null,null,null,null,"実習施設"]
[null,null,null,null,null,null,null,null,null,null,null,null,null,null,null,null,"→",null,null,null,null,null,null,null,null,"空白",null,null,null,null,null,null,null,null,null,null,null,null,null,null,null,null,null,null,null,null,null,null,null,null,null,null,null,null,null,null,null,null,null,null,null,null,null,null,null,null,null,null,null,null,null,null,null,null,null,null,null,null,null,null,"実習施設"]
[null,null,null,null,null,null,null,null,null,null,null,null,null,null,null,null,"→",null,null,null,null,null,null,null,null,"空白",null,null,null,null,null,null,null,null,null,null,null,null,null,null,null,null,null,null,null,null,null,null,null,null,null,null,null,null,null,null,null,null,null,null,null,null,null,null,null,null,null,null,null,null,null,null,null,null,null,null,null,null,null,null,"実習施設"]
[null,null,null,null,null,null,null,null,null,null,null,null,null,null,null,null,"→",null,null,null,null,null,null,null,null,"空白",null,null,null,null,null,null,null,null,null,null,null,null,null,null,null,null,null,null,null,null,null,null,null,null,null,null,null,null,null,null,null,null,null,null,null,null,null,null,null,null,null,null,null,null,null,null,null,null,null,null,null,null,null,null,"実習施設"]
[null,null,null,null,null,null,null,null,null,null,null,null,null,null,null,null,"→",null,null,null,null,null,null,null,null,"空白",null,null,null,null,null,null,null,null,null,null,null,null,null,null,null,null,null,null,null,null,null,null,null,null,null,null,null,null,null,null,null,null,null,null,null,null,null,null,null,null,null,null,null,null,null,null,null,null,null,null,null,null,null,null,"実習施設"]
[null,null,null,null,null,null,null,null,null,null,null,null,null,null,null,null,"→",null,null,null,null,null,null,null,null,{"$f":"IF($C43=\"\",\"空白\",IF(AND($C43=\"変更\",$E43<>\"\",$K43<>\"\",$G43<>\"\",$R43<>\"\"),\"変更OK\",IF(AND($C43=\"追加\",$E43<>\"\",$R43<>\"\"),\"追加OK\",IF(AND($C43=\"削除\",$E43<>\"\",$K43<>\"\"),\"削除OK\",\"NG\"))))","v":"空白"},null,null,null,null,null,null,null,null,null,null,null,null,null,null,null,null,null,null,null,null,null,null,null,null,null,null,null,null,null,null,null,null,null,null,null,null,null,null,null,null,null,null,null,null,null,null,null,null,null,null,null,null,null,null,"実習施設"]
[null,null,null,null,null,null,null,null,null,null,null,null,null,null,null,null,"→",null,null,null,null,null,null,null,null,{"$f":"IF($C44=\"\",\"空白\",IF(AND($C44=\"変更\",$E44<>\"\",$K44<>\"\",$G44<>\"\",$R44<>\"\"),\"変更OK\",IF(AND($C44=\"追加\",$E44<>\"\",$R44<>\"\"),\"追加OK\",IF(AND($C44=\"削除\",$E44<>\"\",$K44<>\"\"),\"削除OK\",\"NG\"))))","v":"空白"},null,null,null,null,null,null,null,null,null,null,null,null,null,null,null,null,null,null,null,null,null,null,null,null,null,null,null,null,null,null,null,null,null,null,null,null,null,null,null,null,null,null,null,null,null,null,null,null,null,null,null,null,null,null,"実習施設"]
[]
[null,null,"実習指導者"]
[null,null,"変更区分",null,"実習指導者調書頁番号",null,"変更箇所"]
[null,null,null,null,null,null,null,null,null,null,null,null,null,null,null,null,"→",null,null,null,null,null,null,null,null,{"$f":"IF($C48=\"\",\"空白\",IF(AND($C48=\"変更\",$E48<>\"\",$K48<>\"\",$R48<>\"\"),\"変更OK\",IF(AND($C48=\"追加\",$E48<>\"\",$R48<>\"\"),\"追加OK\",IF(AND($C48=\"削除\",$E48<>\"\",$K48<>\"\"),\"削除OK\",\"NG\"))))","v":"空白"},null,null,null,null,null,null,null,null,null,null,null,null,null,null,null,null,null,null,null,null,null,null,null,null,null,null,null,null,null,null,null,null,null,null,null,null,null,null,null,null,null,null,null,null,null,null,null,null,null,null,null,null,null,null,"実習指導者"]
[null,null,null,null,null,null,null,null,null,null,null,null,null,null,null,null,"→",null,null,null,null,null,null,null,null,"空白",null,null,null,null,null,null,null,null,null,null,null,null,null,null,null,null,null,null,null,null,null,null,null,null,null,null,null,null,null,null,null,null,null,null,null,null,null,null,null,null,null,null,null,null,null,null,null,null,null,null,null,null,null,null,"実習指導者"]
[null,null,null,null,null,null,null,null,null,null,null,null,null,null,null,null,"→",null,null,null,null,null,null,null,null,"空白",null,null,null,null,null,null,null,null,null,null,null,null,null,null,null,null,null,null,null,null,null,null,null,null,null,null,null,null,null,null,null,null,null,null,null,null,null,null,null,null,null,null,null,null,null,null,null,null,null,null,null,null,null,null,"実習指導者"]
[null,null,null,null,null,null,null,null,null,null,null,null,null,null,null,null,"→",null,null,null,null,null,null,null,null,"空白",null,null,null,null,null,null,null,null,null,null,null,null,null,null,null,null,null,null,null,null,null,null,null,null,null,null,null,null,null,null,null,null,null,null,null,null,null,null,null,null,null,null,null,null,null,null,null,null,null,null,null,null,null,null,"実習指導者"]
[null,null,null,null,null,null,null,null,null,null,null,null,null,null,null,null,"→",null,null,null,null,null,null,null,null,"空白",null,null,null,null,null,null,null,null,null,null,null,null,null,null,null,null,null,null,null,null,null,null,null,null,null,null,null,null,null,null,null,null,null,null,null,null,null,null,null,null,null,null,null,null,null,null,null,null,null,null,null,null,null,null,"実習指導者"]
[null,null,null,null,null,null,null,null,null,null,null,null,null,null,null,null,"→",null,null,null,null,null,null,null,null,"空白",null,null,null,null,null,null,null,null,null,null,null,null,null,null,null,null,null,null,null,null,null,null,null,null,null,null,null,null,null,null,null,null,null,null,null,null,null,null,null,null,null,null,null,null,null,null,null,null,null,null,null,null,null,null,"実習指導者"]
[null,null,null,null,null,null,null,null,null,null,null,null,null,null,null,null,"→",null,null,null,null,null,null,null,null,"空白",null,null,null,null,null,null,null,null,null,null,null,null,null,null,null,null,null,null,null,null,null,null,null,null,null,null,null,null,null,null,null,null,null,null,null,null,null,null,null,null,null,null,null,null,null,null,null,null,null,null,null,null,null,null,"実習指導者"]
[]
[null,null,"以下、該当する場合のみ記入（該当しない項目は非表示可）"]
[null,null,"学則"]
[null,null,null,null,null,null,null,null,null,null,"変更概要（自由記載）"]
[]
[]
[null,null,"時間割"]
[null,null,null,null,null,null,null,null,null,null,"変更概要（自由記載）"]
[]
[]
[null,null,"授業概要"]
[null,null,null,null,null,null,null,null,null,null,"変更概要（自由記載）"]
[]
[]
[null,null,"実習計画（実習巡回計画表）"]
[null,null,null,null,null,null,null,null,null,null,"変更概要（自由記載）"]
[]
[]
[null,null,"（通信教育の場合）"]
[null,null,"通信養成を行う地域"]
[]
[null,null,"添削その他指導の方法"]
[]
[null,null,"面接授業実施機関における講義室及び演習室の使用についての当該大学等の設置者の承諾書"]
[]
[null,null,"通信養成に使用する教材の目録"]
[]
[null,null,"その他（自由記載）"]

{"sheet":"大学等確認申請書（変更届）","index":5,"n_rows":133,"n_cols":82,"rows_kept":133,"cut":false,"hidden":false,"merged":[[14,24,14,27],[14,28,14,31],[14,32,14,33],[16,4,16,9],[16,10,16,16],[16,17,16,23],[16,24,16,27],[16,28,16,31],[16,32,16,33],[15,4,15,9],[15,10,15,16],[15,17,15,23],[15,24,15,27],[15,28,15,31],[15,32,15,33],[121,0,121,3],[121,4,121,29],[160,31,160,34],[161,31,161,34],[162,31,162,34],[163,31,163,34],[71,30,71,31],[71,32,71,33],[62,24,62,26],[76,25,76,27],[79,28,79,29],[81,28,81,29],[68,25,68,27],[81,32,81,33],[68,32,68,33],[68,30,68,31],[68,28,68,29],[82,25,82,27],[89,3,89,29],[74,17,74,18],[74,25,74,27],[142,31,142,34],[143,31,143,34],[144,31,144,34],[145,31,145,34],[146,31,146,34],[147,31,147,34],[148,31,148,34],[149,31,149,34],[150,31,150,34],[74,30,74,31],[78,30,78,31],[167,31,167,34],[151,31,151,34],[152,31,152,34],[153,31,153,34],[154,31,154,34],[155,31,155,34],[156,31,156,34],[157,31,157,34],[158,31,158,34],[159,31,159,34],[164,31,164,34],[165,31,165,34],[166,31,166,34],[133,31,133,34],[134,31,134,34],[135,31,135,34],[136,31,136,34],[137,31,137,34],[138,31,138,34],[139,31,139,34],[140,31,140,34],[141,31,141,34],[78,28,78,29],[81,30,81,31],[82,30,82,31],[90,3,90,29],[78,2,78,6],[84,32,84,33],[93,4,94,10],[84,25,84,27],[84,28,84,29],[125,31,125,34],[116,31,116,34],[117,31,117,34],[97,4,98,10],[84,30,84,31],[78,12,78,16],[79,8,79,11],[83,28,83,29],[84,2,84,6],[83,32,83,33],[83,30,83,31],[82,12,82,16],[82,17,82,18],[82,8,82,11],[80,17,80,18],[80,25,80,27],[80,28,80,29],[79,25,79,27],[80,19,80,23],[74,28,74,29],[79,2,79,6],[81,2,81,6],[76,32,76,33],[75,30,75,31],[75,32,75,33],[73,2,73,6],[73,8,73,11],[82,32,82,33],[75,19,75,23],[75,25,75,27],[78,25,78,27],[70,28,70,29],[67,18,67,23],[71,2,71,6],[76,2,76,6],[76,28,76,29],[76,30,76,31],[79,32,79,33],[80,2,80,6],[80,8,80,11],[80,12,80,16],[70,32,70,33],[68,19,68,23],[78,17,78,18],[78,19,78,23],[71,25,71,27],[71,28,71,29],[76,8,76,11],[76,12,76,16],[70,2,70,6],[70,8,70,11],[70,12,70,16],[67,2,67,7],[78,8,78,11],[79,17,79,18],[97,13,97,24],[98,11,98,12],[98,13,98,24],[62,28,62,33],[62,12,62,17],[64,28,64,33],[52,10,52,11],[43,12,43,26],[52,12,52,26],[52,27,52,33],[49,12,49,26],[49,27,49,33],[51,27,51,33],[46,27,46,33],[47,12,47,26],[47,27,47,33],[55,4,55,11],[55,12,55,26],[55,27,55,33],[67,28,67,33],[80,30,80,31],[80,32,80,33],[79,12,79,16],[66,12,66,17],[11,32,11,33],[20,32,20,33],[21,32,21,33],[12,28,12,31],[17,28,17,31],[12,32,12,33],[21,28,21,31],[0,0,0,33],[2,4,2,33],[3,4,3,33],[4,8,4,33],[5,8,5,33],[6,8,6,33],[10,4,10,33],[9,20,9,33],[8,20,8,33],[20,10,20,16],[7,12,7,13],[7,16,7,17],[11,28,11,31],[11,10,11,16],[13,24,13,27],[13,28,13,31],[19,28,19,31],[9,12,9,15],[9,16,9,19],[8,12,8,15],[8,16,8,19],[11,17,11,23],[20,17,20,23],[18,17,18,23],[8,8,8,11],[9,4,9,7],[9,8,9,11],[12,17,12,23],[14,4,14,9],[14,10,14,16],[14,17,14,23],[12,24,12,27],[17,17,17,23],[17,24,17,27],[19,17,19,23],[63,8,63,10],[63,12,63,17],[58,8,58,10],[58,12,58,17],[79,30,79,31],[70,30,70,31],[79,19,79,23],[71,8,71,11],[71,12,71,16],[71,17,71,18],[65,12,65,17],[65,18,65,23],[75,8,75,11],[75,12,75,16],[75,17,75,18],[67,12,67,17],[66,18,66,23],[66,24,66,26],[66,28,66,33],[71,19,71,23],[73,12,73,16],[73,17,73,18],[83,25,83,27],[82,2,82,6],[83,2,83,6],[81,8,81,11],[81,12,81,16],[81,19,81,23],[82,19,82,23],[83,19,83,23],[81,25,81,27],[73,19,73,23],[73,25,73,27],[75,2,75,6],[74,2,74,6],[76,17,76,18],[74,8,74,11],[74,19,74,23],[83,17,83,18],[76,19,76,23],[68,7,68,11],[68,12,68,16],[82,28,82,29],[2,0,2,3],[3,0,3,3],[4,0,6,3],[4,4,4,7],[6,4,6,7],[5,4,5,7],[7,0,7,3],[8,0,9,3],[26,4,26,9],[21,0,31,3],[11,0,20,3],[10,0,10,3],[7,8,7,9],[8,4,8,7],[11,4,11,9],[31,4,31,9],[27,4,27,9],[18,4,18,9],[28,4,28,9],[21,4,21,9],[23,4,23,9],[69,2,69,6],[67,24,67,26],[67,8,67,10],[11,24,11,27],[34,4,34,11],[36,4,36,11],[12,4,12,9],[12,10,12,16],[22,24,22,27],[27,10,27,16],[27,17,27,23],[37,27,37,33],[31,28,31,31],[38,27,38,33],[18,10,18,16],[19,4,19,9],[19,10,19,16],[20,28,20,31],[13,4,13,9],[13,10,13,16],[13,17,13,23],[19,24,19,27],[13,32,13,33],[18,24,18,27],[56,0,66,1],[42,4,42,11],[43,4,43,11],[44,4,44,11],[56,8,57,11],[65,2,65,7],[65,8,65,10],[66,2,66,7],[66,8,66,10],[32,0,55,3],[50,4,50,11],[32,4,32,11],[62,2,62,7],[62,8,62,10],[63,2,63,7],[38,4,38,11],[39,4,39,11],[46,4,46,11],[47,4,47,11],[48,4,48,11],[51,10,51,11],[49,4,49,11],[37,4,37,11],[61,8,61,10],[129,31,129,34],[130,31,130,34],[131,31,131,34],[132,31,132,34],[121,31,121,34],[101,4,102,10],[101,11,101,12],[101,13,101,24],[102,11,102,12],[102,13,102,24],[116,4,116,29],[117,4,117,29],[118,4,118,29],[119,4,119,29],[120,4,120,29],[126,31,126,34],[127,31,127,34],[128,31,128,34],[118,31,118,34],[119,31,119,34],[120,31,120,34],[122,31,122,34],[123,31,123,34],[124,31,124,34],[120,0,120,3],[116,0,116,3],[68,0,84,1],[68,2,68,6],[93,11,93,12],[94,11,94,12],[81,17,81,18],[83,8,83,11],[83,12,83,16],[94,13,94,24],[72,2,72,6],[72,8,72,11],[72,12,72,16],[72,17,72,18],[72,19,72,23],[84,8,84,11],[84,12,84,16],[84,17,84,18],[93,13,93,24],[97,11,97,12],[84,19,84,23],[117,0,117,3],[118,0,118,3],[119,0,119,3],[18,28,18,31],[19,32,19,33],[20,24,20,27],[17,4,17,9],[17,10,17,16],[20,4,20,9],[17,32,17,33],[60,8,60,10],[60,12,60,17],[60,18,60,23],[60,24,60,26],[60,28,60,33],[18,32,18,33],[25,32,25,33],[22,4,22,9],[22,10,22,16],[25,28,25,31],[24,4,24,9],[59,2,59,7],[59,8,59,10],[29,28,29,31],[32,12,32,26],[45,4,45,11],[26,24,26,27],[26,28,26,31],[27,24,27,27],[25,4,25,9],[25,10,25,16],[25,17,25,23],[25,24,25,27],[59,24,59,26],[35,4,35,11],[41,4,41,11],[51,4,52,9],[53,4,53,11],[54,4,54,11],[53,12,53,26],[53,27,53,33],[54,12,54,26],[26,32,26,33],[26,10,26,16],[26,17,26,23],[29,4,29,9],[29,17,29,23],[29,24,29,27],[28,32,28,33],[29,32,29,33],[28,28,28,31],[27,28,27,31],[64,18,64,23],[64,24,64,26],[68,17,68,18],[31,17,31,23],[33,12,33,26],[60,2,60,7],[40,4,40,11],[40,12,40,26],[36,12,36,26],[41,12,41,26],[45,12,45,26],[31,24,31,27],[36,27,36,33],[37,12,37,26],[35,27,35,33],[35,12,35,26],[54,27,54,33],[65,24,65,26],[65,28,65,33],[61,28,61,33],[59,28,59,33],[62,18,62,23],[30,17,30,23],[31,10,31,16],[61,12,61,17],[61,18,61,23],[61,24,61,26],[44,27,44,33],[45,27,45,33],[31,32,31,33],[27,32,27,33],[29,10,29,16],[46,12,46,26],[40,27,40,33],[41,27,41,33],[42,12,42,26],[32,27,32,33],[33,4,33,11],[56,2,57,7],[28,10,28,16],[28,17,28,23],[28,24,28,27],[34,27,34,33],[30,28,30,31],[30,32,30,33],[34,12,34,26],[58,24,58,26],[58,28,58,33],[56,12,57,17],[42,27,42,33],[38,12,38,26],[48,12,48,26],[48,27,48,33],[33,27,33,33],[39,12,39,26],[39,27,39,33],[43,27,43,33],[44,12,44,26],[24,32,24,33],[23,10,23,16],[23,17,23,23],[23,24,23,27],[23,28,23,31],[23,32,23,33],[22,32,22,33],[22,28,22,31],[22,17,22,23],[75,28,75,29],[69,8,69,11],[70,19,70,23],[70,17,70,18],[70,25,70,27],[64,2,64,7],[64,8,64,10],[64,12,64,17],[21,17,21,23],[24,10,24,16],[24,17,24,23],[24,24,24,27],[24,28,24,31],[21,10,21,16],[21,24,21,27],[61,2,61,7],[59,12,59,17],[59,18,59,23],[30,4,30,9],[30,10,30,16],[58,2,58,7],[56,18,57,23],[56,24,57,27],[56,28,57,33],[78,32,78,33],[77,2,77,6],[77,8,77,11],[77,12,77,16],[77,17,77,18],[77,19,77,23],[77,25,77,27],[77,28,77,29],[77,30,77,31],[77,32,77,33],[74,32,74,33],[72,25,72,27],[72,28,72,29],[72,30,72,31],[72,32,72,33],[30,24,30,27],[69,12,69,16],[69,17,69,18],[69,19,69,23],[69,25,69,27],[69,28,69,29],[74,12,74,16],[63,18,63,23],[63,24,63,26],[63,28,63,33],[69,30,69,31],[69,32,69,33],[73,28,73,29],[73,30,73,31],[50,12,50,26],[50,27,50,33],[51,12,51,26],[73,32,73,33],[58,18,58,23]]}
[{"$f":"鑑文!$D$12","v":"大学等確認変更届"},null,null,null,null,null,null,null,null,null,null,null,null,null,null,null,null,null,null,null,null,null,null,null,null,null,null,null,null,null,null,null,null,null,null,null,null,null,null,null,null,null,null,null,null,null,null,null,null,null,null,null,null,null,null,null,null,null,null,null,null,null,null,null,null,null,null,null,null,null,null,null,null,null,null,null,null,"■処理変数保持エリア"]
[null,null,null,null,null,null,null,null,null,null,null,null,null,null,null,null,null,null,null,null,null,null,null,null,null,null,null,null,null,null,null,null,null,null,null,null,null,null,null,null,null,null,null,null,null,null,null,null,null,null,null,null,null,null,null,null,null,null,null,null,null,null,null,null,null,null,null,null,null,null,null,null,null,null,null,null,null,"7.専任教員行数",9,{"$f":"CA2","v":9}]
["１　名　称",null,null,null,null,null,null,null,null,null,null,null,null,null,null,null,null,null,null,null,null,null,null,null,null,null,null,null,null,null,null,null,null,null,null,null,null,null,null,null,null,null,null,null,null,null,null,null,null,null,null,null,null,null,null,null,null,null,null,null,null,null,null,null,null,null,null,null,null,null,null,null,null,null,null,null,null,"8.実習教員行数",10,{"$f":"SUM($CA$2:CA3)-8","v":11}]
["２　住　所",null,null,null,null,null,null,null,null,null,null,null,null,null,null,null,null,null,null,null,null,null,null,null,null,null,null,null,null,null,null,null,null,null,null,null,null,null,null,null,null,null,null,null,null,null,null,null,null,null,null,null,null,null,null,null,null,null,null,null,null,null,null,null,null,null,null,null,null,null,null,null,null,null,null,null,null,"9指定科目等に係る開講科目の名称",23,{"$f":"SUM($CA$2:CA4)-16","v":26}]
["３　設置者",null,null,null,"法人名",null,null,null,null,null,null,null,null,null,null,null,null,null,null,null,null,null,null,null,null,null,null,null,null,null,null,null,null,null,null,null,null,null,null,null,null,null,null,null,null,null,null,null,null,null,null,null,null,null,null,null,null,null,null,null,null,null,null,null,null,null,null,null,null,null,null,null,null,null,null,null,null,"10.設備行数",10,{"$f":"SUM($CA$2:CA5)-39","v":13}]
[null,null,null,null,"住　所",null,null,null,null,null,null,null,null,null,null,null,null,null,null,null,null,null,null,null,null,null,null,null,null,null,null,null,null,null,null,null,null,null,null,null,null,null,null,null,null,null,null,null,null,null,null,null,null,null,null,null,null,null,null,null,null,null,null,null,null,null,null,null,null,null,null,null,null,null,null,null,null,"11.施設行数",16,{"$f":"SUM($CA$2:CA6)-47","v":21}]
[null,null,null,null,"代表名"]
["４　設置年月日",null,null,null,null,null,null,null,null,null,"年",null,null,null,"月",null,null,null,"日"]
["５　定員等",null,null,null,"１学年の定員",null,null,null,"学級数",null,null,null,"１学級の定員",null,null,null,{"$f":"IF(鑑文!D12=\"大学等確認申請書\",\"授業開始予定年月日\",IF(鑑文!D12=\"大学等確認変更届\",\"変更内容を適応する年月日\",\"\"))","v":"変更内容を適応する年月日"},null,null,null,"備考欄"]
[]
["６　学校等の\n　　長の氏名"]
["７　実習演習\n　　担当専任教員",null,null,null,"氏　　　　　名",null,null,null,null,null,"担当する科目",null,null,null,null,null,null,"資格名",null,null,null,null,null,null,"指針該当番号",null,null,null,"教員調書頁番号",null,null,null,"調書出力",null,null,null,null,null,null,null,null,null,null,null,null,null,null,null,null,null,null,null,null,null,null,null,null,null,null,null,null,null,null,null,null,null,null,null,null,null,null,null,null,null,null,null,null,"■７実習演習担当専任教員　処理可否判定フラグ"]
[null,null,null,null,null,null,null,null,null,null,null,null,null,null,null,null,null,null,null,null,null,null,null,null,null,null,null,null,null,null,null,null,null,null,null,null,null,null,null,null,null,null,null,null,null,null,null,null,null,null,null,null,null,null,null,null,null,null,null,null,null,null,null,null,null,null,null,null,null,null,null,null,null,null,null,null,null,{"$f":"IF(AND($E13=\"\",$K13=\"\",$Y13=\"\",$AC13=\"\"),\"空白\",IF(AND($E13<>\"\",$K13<>\"\",$Y13<>\"\",$AC13<>\"\"),\"入力済\",\"入力途中\"))","v":"空白"},"専任教員",{"$f":"IF(AC13<>\"\",\"7-\"&AC13&\".\",\"\")","v":""},"★"]
[null,null,null,null,null,null,null,null,null,null,null,null,null,null,null,null,null,null,null,null,null,null,null,null,null,null,null,null,null,null,null,null,null,null,null,null,null,null,null,null,null,null,null,null,null,null,null,null,null,null,null,null,null,null,null,null,null,null,null,null,null,null,null,null,null,null,null,null,null,null,null,null,null,null,null,null,null,"空白","専任教員","","★"]
[null,null,null,null,null,null,null,null,null,null,null,null,null,null,null,null,null,null,null,null,null,null,null,null,null,null,null,null,null,null,null,null,null,null,null,null,null,null,null,null,null,null,null,null,null,null,null,null,null,null,null,null,null,null,null,null,null,null,null,null,null,null,null,null,null,null,null,null,null,null,null,null,null,null,null,null,null,"空白","専任教員",{"$f":"IF(AC15<>\"\",\"7-\"&AC15&\".\",\"\")","v":""},"★"]
[null,null,null,null,null,null,null,null,null,null,null,null,null,null,null,null,null,null,null,null,null,null,null,null,null,null,null,null,null,null,null,null,null,null,null,null,null,null,null,null,null,null,null,null,null,null,null,null,null,null,null,null,null,null,null,null,null,null,null,null,null,null,null,null,null,null,null,null,null,null,null,null,null,null,null,null,null,"空白","専任教員",{"$f":"IF(AC16<>\"\",\"7-\"&AC16&\".\",\"\")","v":""},"★"]
[null,null,null,null,null,null,null,null,null,null,null,null,null,null,null,null,null,null,null,null,null,null,null,null,null,null,null,null,null,null,null,null,null,null,null,null,null,null,null,null,null,null,null,null,null,null,null,null,null,null,null,null,null,null,null,null,null,null,null,null,null,null,null,null,null,null,null,null,null,null,null,null,null,null,null,null,null,"空白","専任教員",{"$f":"IF(AC17<>\"\",\"7-\"&AC17&\".\",\"\")","v":""},"★"]
[null,null,null,null,null,null,null,null,null,null,null,null,null,null,null,null,null,null,null,null,null,null,null,null,null,null,null,null,null,null,null,null,null,null,null,null,null,null,null,null,null,null,null,null,null,null,null,null,null,null,null,null,null,null,null,null,null,null,null,null,null,null,null,null,null,null,null,null,null,null,null,null,null,null,null,null,null,"空白","専任教員","","★"]
[null,null,null,null,null,null,null,null,null,null,null,null,null,null,null,null,null,null,null,null,null,null,null,null,null,null,null,null,null,null,null,null,null,null,null,null,null,null,null,null,null,null,null,null,null,null,null,null,null,null,null,null,null,null,null,null,null,null,null,null,null,null,null,null,null,null,null,null,null,null,null,null,null,null,null,null,null,"空白","専任教員","","★"]
[null,null,null,null,null,null,null,null,null,null,null,null,null,null,null,null,null,null,null,null,null,null,null,null,null,null,null,null,null,null,null,null,null,null,null,null,null,null,null,null,null,null,null,null,null,null,null,null,null,null,null,null,null,null,null,null,null,null,null,null,null,null,null,null,null,null,null,null,null,null,null,null,null,null,null,null,null,"空白","専任教員","","★"]
[null,null,null,null,null,null,null,null,null,null,null,null,null,null,null,null,null,null,null,null,null,null,null,null,null,null,null,null,null,null,null,null,null,null,null,null,null,null,null,null,null,null,null,null,null,null,null,null,null,null,null,null,null,null,null,null,null,null,null,null,null,null,null,null,null,null,null,null,null,null,null,null,null,null,null,null,null,{"$f":"IF(AND($E21=\"\",$K21=\"\",$Y21=\"\",$AC21=\"\"),\"空白\",IF(AND($E21<>\"\",$K21<>\"\",$Y21<>\"\",$AC21<>\"\"),\"入力済\",\"入力途中\"))","v":"空白"},"専任教員","","★"]
["８　その他の実習\n　　演習担当教員",null,null,null,"氏　　　　　名",null,null,null,null,null,"担当する科目",null,null,null,null,null,null,"資格名",null,null,null,null,null,null,"指針該当番号",null,null,null,"教員調書頁番号",null,null,null,"調書出力",null,null,null,null,null,null,null,null,null,null,null,null,null,null,null,null,null,null,null,null,null,null,null,null,null,null,null,null,null,null,null,null,null,null,null,null,null,null,null,null,null,null,null,null,"■７実習演習担当専任教員　処理可否判定フラグ",null,null,"★"]
[null,null,null,null,null,null,null,null,null,null,null,null,null,null,null,null,null,null,null,null,null,null,null,null,null,null,null,null,null,null,null,null,null,null,null,null,null,null,null,null,null,null,null,null,null,null,null,null,null,null,null,null,null,null,null,null,null,null,null,null,null,null,null,null,null,null,null,null,null,null,null,null,null,null,null,null,null,"空白","その他教員",{"$f":"IF(AC23<>\"\",\"8-\"&AC23&\".\",\"\")","v":""},"★"]
[null,null,null,null,null,null,null,null,null,null,null,null,null,null,null,null,null,null,null,null,null,null,null,null,null,null,null,null,null,null,null,null,null,null,null,null,null,null,null,null,null,null,null,null,null,null,null,null,null,null,null,null,null,null,null,null,null,null,null,null,null,null,null,null,null,null,null,null,null,null,null,null,null,null,null,null,null,"空白","その他教員",{"$f":"IF(AC24<>\"\",\"8-\"&AC24&\".\",\"\")","v":""},"★"]
[null,null,null,null,null,null,null,null,null,null,null,null,null,null,null,null,null,null,null,null,null,null,null,null,null,null,null,null,null,null,null,null,null,null,null,null,null,null,null,null,null,null,null,null,null,null,null,null,null,null,null,null,null,null,null,null,null,null,null,null,null,null,null,null,null,null,null,null,null,null,null,null,null,null,null,null,null,"空白","その他教員",{"$f":"IF(AC25<>\"\",\"8-\"&AC25&\".\",\"\")","v":""},"★"]
[null,null,null,null,null,null,null,null,null,null,null,null,null,null,null,null,null,null,null,null,null,null,null,null,null,null,null,null,null,null,null,null,null,null,null,null,null,null,null,null,null,null,null,null,null,null,null,null,null,null,null,null,null,null,null,null,null,null,null,null,null,null,null,null,null,null,null,null,null,null,null,null,null,null,null,null,null,"空白","その他教員",{"$f":"IF(AC26<>\"\",\"8-\"&AC26&\".\",\"\")","v":""},"★"]
[null,null,null,null,null,null,null,null,null,null,null,null,null,null,null,null,null,null,null,null,null,null,null,null,null,null,null,null,null,null,null,null,null,null,null,null,null,null,null,null,null,null,null,null,null,null,null,null,null,null,null,null,null,null,null,null,null,null,null,null,null,null,null,null,null,null,null,null,null,null,null,null,null,null,null,null,null,"空白","その他教員",{"$f":"IF(AC27<>\"\",\"8-\"&AC27&\".\",\"\")","v":""},"★"]
[null,null,null,null,null,null,null,null,null,null,null,null,null,null,null,null,null,null,null,null,null,null,null,null,null,null,null,null,null,null,null,null,null,null,null,null,null,null,null,null,null,null,null,null,null,null,null,null,null,null,null,null,null,null,null,null,null,null,null,null,null,null,null,null,null,null,null,null,null,null,null,null,null,null,null,null,null,"空白","その他教員","","★"]
[null,null,null,null,null,null,null,null,null,null,null,null,null,null,null,null,null,null,null,null,null,null,null,null,null,null,null,null,null,null,null,null,null,null,null,null,null,null,null,null,null,null,null,null,null,null,null,null,null,null,null,null,null,null,null,null,null,null,null,null,null,null,null,null,null,null,null,null,null,null,null,null,null,null,null,null,null,"空白","その他教員","","★"]
[null,null,null,null,null,null,null,null,null,null,null,null,null,null,null,null,null,null,null,null,null,null,null,null,null,null,null,null,null,null,null,null,null,null,null,null,null,null,null,null,null,null,null,null,null,null,null,null,null,null,null,null,null,null,null,null,null,null,null,null,null,null,null,null,null,null,null,null,null,null,null,null,null,null,null,null,null,"空白","その他教員","","★"]
[null,null,null,null,null,null,null,null,null,null,null,null,null,null,null,null,null,null,null,null,null,null,null,null,null,null,null,null,null,null,null,null,null,null,null,null,null,null,null,null,null,null,null,null,null,null,null,null,null,null,null,null,null,null,null,null,null,null,null,null,null,null,null,null,null,null,null,null,null,null,null,null,null,null,null,null,null,"空白","その他教員","","★"]
[null,null,null,null,null,null,null,null,null,null,null,null,null,null,null,null,null,null,null,null,null,null,null,null,null,null,null,null,null,null,null,null,null,null,null,null,null,null,null,null,null,null,null,null,null,null,null,null,null,null,null,null,null,null,null,null,null,null,null,null,null,null,null,null,null,null,null,null,null,null,null,null,null,null,null,null,null,"空白","その他教員","","★"]
["９　指定科目等に係る開講科目の名称",null,null,null,"指定科目等の名称",null,null,null,null,null,null,null,"開講科目の名称",null,null,null,null,null,null,null,null,null,null,null,null,null,null,"読替認定を受けた場合\n文書番号を記入",null,null,null,null,null,null,null,null,null,null,null,null,null,null,null,null,null,null,null,null,null,null,null,null,null,null,null,null,null,null,null,null,null,null,null,null,null,null,null,null,null,null,null,null,null,null,null,null,null,"■開講科目突合キー（名称×文章番号）",null,"削除不可フラグ"]
[null,null,null,null,"医学概論",null,null,null,null,null,null,null,null,null,null,null,null,null,null,null,null,null,null,null,null,null,null,null,null,null,null,null,null,null,null,null,null,null,null,null,null,null,null,null,null,null,null,null,null,null,null,null,null,null,null,null,null,null,null,null,null,null,null,null,null,null,null,null,null,null,null,null,null,null,null,null,null,{"$f":"IF($AB34<>\"\",ASC(SUBSTITUTE(SUBSTITUTE($M34, \"　\", \"\"), \" \", \"\"))&\"_\"&ASC(SUBSTITUTE(SUBSTITUTE($AB34, \"　\", \"\"), \" \", \"\")),\"\")","v":""},"文章番号","★"]
[null,null,null,null,"心理学と心理的支援",null,null,null,null,null,null,null,null,null,null,null,null,null,null,null,null,null,null,null,null,null,null,null,null,null,null,null,null,null,null,null,null,null,null,null,null,null,null,null,null,null,null,null,null,null,null,null,null,null,null,null,null,null,null,null,null,null,null,null,null,null,null,null,null,null,null,null,null,null,null,null,null,{"$f":"IF($AB35<>\"\",ASC(SUBSTITUTE(SUBSTITUTE($M35, \"　\", \"\"), \" \", \"\"))&\"_\"&ASC(SUBSTITUTE(SUBSTITUTE($AB35, \"　\", \"\"), \" \", \"\")),\"\")","v":""},"文章番号","★"]
[null,null,null,null,"社会学と社会システム",null,null,null,null,null,null,null,null,null,null,null,null,null,null,null,null,null,null,null,null,null,null,null,null,null,null,null,null,null,null,null,null,null,null,null,null,null,null,null,null,null,null,null,null,null,null,null,null,null,null,null,null,null,null,null,null,null,null,null,null,null,null,null,null,null,null,null,null,null,null,null,null,{"$f":"IF($AB36<>\"\",ASC(SUBSTITUTE(SUBSTITUTE($M36, \"　\", \"\"), \" \", \"\"))&\"_\"&ASC(SUBSTITUTE(SUBSTITUTE($AB36, \"　\", \"\"), \" \", \"\")),\"\")","v":""},"文章番号","★"]
[null,null,null,null,"社会福祉の原理と政策",null,null,null,null,null,null,null,null,null,null,null,null,null,null,null,null,null,null,null,null,null,null,null,null,null,null,null,null,null,null,null,null,null,null,null,null,null,null,null,null,null,null,null,null,null,null,null,null,null,null,null,null,null,null,null,null,null,null,null,null,null,null,null,null,null,null,null,null,null,null,null,null,{"$f":"IF($AB37<>\"\",ASC(SUBSTITUTE(SUBSTITUTE($M37, \"　\", \"\"), \" \", \"\"))&\"_\"&ASC(SUBSTITUTE(SUBSTITUTE($AB37, \"　\", \"\"), \" \", \"\")),\"\")","v":""},"文章番号","★"]
[null,null,null,null,"地域福祉と包括的支援体制",null,null,null,null,null,null,null,null,null,null,null,null,null,null,null,null,null,null,null,null,null,null,null,null,null,null,null,null,null,null,null,null,null,null,null,null,null,null,null,null,null,null,null,null,null,null,null,null,null,null,null,null,null,null,null,null,null,null,null,null,null,null,null,null,null,null,null,null,null,null,null,null,{"$f":"IF($AB38<>\"\",ASC(SUBSTITUTE(SUBSTITUTE($M38, \"　\", \"\"), \" \", \"\"))&\"_\"&ASC(SUBSTITUTE(SUBSTITUTE($AB38, \"　\", \"\"), \" \", \"\")),\"\")","v":""},"文章番号","★"]
[null,null,null,null,"社会保障",null,null,null,null,null,null,null,null,null,null,null,null,null,null,null,null,null,null,null,null,null,null,null,null,null,null,null,null,null,null,null,null,null,null,null,null,null,null,null,null,null,null,null,null,null,null,null,null,null,null,null,null,null,null,null,null,null,null,null,null,null,null,null,null,null,null,null,null,null,null,null,null,"","文章番号","★"]
[null,null,null,null,"障害者福祉",null,null,null,null,null,null,null,null,null,null,null,null,null,null,null,null,null,null,null,null,null,null,null,null,null,null,null,null,null,null,null,null,null,null,null,null,null,null,null,null,null,null,null,null,null,null,null,null,null,null,null,null,null,null,null,null,null,null,null,null,null,null,null,null,null,null,null,null,null,null,null,null,"","文章番号","★"]
[null,null,null,null,"権利擁護を支える法制度",null,null,null,null,null,null,null,null,null,null,null,null,null,null,null,null,null,null,null,null,null,null,null,null,null,null,null,null,null,null,null,null,null,null,null,null,null,null,null,null,null,null,null,null,null,null,null,null,null,null,null,null,null,null,null,null,null,null,null,null,null,null,null,null,null,null,null,null,null,null,null,null,"","文章番号","★"]
[null,null,null,null,"刑事司法と福祉",null,null,null,null,null,null,null,null,null,null,null,null,null,null,null,null,null,null,null,null,null,null,null,null,null,null,null,null,null,null,null,null,null,null,null,null,null,null,null,null,null,null,null,null,null,null,null,null,null,null,null,null,null,null,null,null,null,null,null,null,null,null,null,null,null,null,null,null,null,null,null,null,"","文章番号","★"]
[null,null,null,null,"社会福祉調査の基礎",null,null,null,null,null,null,null,null,null,null,null,null,null,null,null,null,null,null,null,null,null,null,null,null,null,null,null,null,null,null,null,null,null,null,null,null,null,null,null,null,null,null,null,null,null,null,null,null,null,null,null,null,null,null,null,null,null,null,null,null,null,null,null,null,null,null,null,null,null,null,null,null,"","文章番号","★"]
[null,null,null,null,"精神医学と精神医療",null,null,null,null,null,null,null,null,null,null,null,null,null,null,null,null,null,null,null,null,null,null,null,null,null,null,null,null,null,null,null,null,null,null,null,null,null,null,null,null,null,null,null,null,null,null,null,null,null,null,null,null,null,null,null,null,null,null,null,null,null,null,null,null,null,null,null,null,null,null,null,null,"","文章番号","★"]
[null,null,null,null,"現代の精神保健の課題と支援",null,null,null,null,null,null,null,null,null,null,null,null,null,null,null,null,null,null,null,null,null,null,null,null,null,null,null,null,null,null,null,null,null,null,null,null,null,null,null,null,null,null,null,null,null,null,null,null,null,null,null,null,null,null,null,null,null,null,null,null,null,null,null,null,null,null,null,null,null,null,null,null,"","文章番号","★"]
[null,null,null,null,"ソーシャルワークの基盤と専門職",null,null,null,null,null,null,null,null,null,null,null,null,null,null,null,null,null,null,null,null,null,null,null,null,null,null,null,null,null,null,null,null,null,null,null,null,null,null,null,null,null,null,null,null,null,null,null,null,null,null,null,null,null,null,null,null,null,null,null,null,null,null,null,null,null,null,null,null,null,null,null,null,"","文章番号","★"]
[null,null,null,null,"精神保健福祉の原理",null,null,null,null,null,null,null,null,null,null,null,null,null,null,null,null,null,null,null,null,null,null,null,null,null,null,null,null,null,null,null,null,null,null,null,null,null,null,null,null,null,null,null,null,null,null,null,null,null,null,null,null,null,null,null,null,null,null,null,null,null,null,null,null,null,null,null,null,null,null,null,null,"","文章番号","★"]
[null,null,null,null,"ソーシャルワークの理論と方法",null,null,null,null,null,null,null,null,null,null,null,null,null,null,null,null,null,null,null,null,null,null,null,null,null,null,null,null,null,null,null,null,null,null,null,null,null,null,null,null,null,null,null,null,null,null,null,null,null,null,null,null,null,null,null,null,null,null,null,null,null,null,null,null,null,null,null,null,null,null,null,null,"","文章番号","★"]
[null,null,null,null,"ソーシャルワークの理論と方法（専門）",null,null,null,null,null,null,null,null,null,null,null,null,null,null,null,null,null,null,null,null,null,null,null,null,null,null,null,null,null,null,null,null,null,null,null,null,null,null,null,null,null,null,null,null,null,null,null,null,null,null,null,null,null,null,null,null,null,null,null,null,null,null,null,null,null,null,null,null,null,null,null,null,"","文章番号","★"]
[null,null,null,null,"精神障害リハビリテーション論",null,null,null,null,null,null,null,null,null,null,null,null,null,null,null,null,null,null,null,null,null,null,null,null,null,null,null,null,null,null,null,null,null,null,null,null,null,null,null,null,null,null,null,null,null,null,null,null,null,null,null,null,null,null,null,null,null,null,null,null,null,null,null,null,null,null,null,null,null,null,null,null,"","文章番号","★"]
[null,null,null,null,"精神保健福祉制度論",null,null,null,null,null,null,null,null,null,null,null,null,null,null,null,null,null,null,null,null,null,null,null,null,null,null,null,null,null,null,null,null,null,null,null,null,null,null,null,null,null,null,null,null,null,null,null,null,null,null,null,null,null,null,null,null,null,null,null,null,null,null,null,null,null,null,null,null,null,null,null,null,"","文章番号","★"]
[null,null,null,null,"ソーシャルワーク演習",null,null,null,null,null,"【履修】",null,null,null,null,null,null,null,null,null,null,null,null,null,null,null,null,null,null,null,null,null,null,null,null,null,null,null,null,null,null,null,null,null,null,null,null,null,null,null,null,null,null,null,null,null,null,null,null,null,null,null,null,null,null,null,null,null,null,null,null,null,null,null,null,null,null,"","文章番号","★"]
[null,null,null,null,null,null,null,null,null,null,"【免除】",null,null,null,null,null,null,null,null,null,null,null,null,null,null,null,null,null,null,null,null,null,null,null,null,null,null,null,null,null,null,null,null,null,null,null,null,null,null,null,null,null,null,null,null,null,null,null,null,null,null,null,null,null,null,null,null,null,null,null,null,null,null,null,null,null,null,null,"文章番号","★"]
[null,null,null,null,"ソーシャルワーク演習（専門）",null,null,null,null,null,null,null,null,null,null,null,null,null,null,null,null,null,null,null,null,null,null,null,null,null,null,null,null,null,null,null,null,null,null,null,null,null,null,null,null,null,null,null,null,null,null,null,null,null,null,null,null,null,null,null,null,null,null,null,null,null,null,null,null,null,null,null,null,null,null,null,null,"","文章番号","★"]
[null,null,null,null,"ソーシャルワーク実習指導",null,null,null,null,null,null,null,null,null,null,null,null,null,null,null,null,null,null,null,null,null,null,null,null,null,null,null,null,null,null,null,null,null,null,null,null,null,null,null,null,null,null,null,null,null,null,null,null,null,null,null,null,null,null,null,null,null,null,null,null,null,null,null,null,null,null,null,null,null,null,null,null,"","文章番号","★"]
[null,null,null,null,"ソーシャルワーク実習",null,null,null,null,null,null,null,null,null,null,null,null,null,null,null,null,null,null,null,null,null,null,null,null,null,null,null,null,null,null,null,null,null,null,null,null,null,null,null,null,null,null,null,null,null,null,null,null,null,null,null,null,null,null,null,null,null,null,null,null,null,null,null,null,null,null,null,null,null,null,null,null,"","文章番号","★"]
["10　設備",null,"教室等の名称\n（室毎に記入すること）",null,null,null,null,null,"面積\n（普通教室のみ）",null,null,null,"共用先\n（共用する場合に\nついてのみ記入）",null,null,null,null,null,"教室等の名称\n（室毎に記入すること）",null,null,null,null,null,"面積\n（普通教室のみ）",null,null,null,"共用先\n（共用する場合に\nついてのみ記入）"]
[]
[null,null,null,null,null,null,null,null,null,null,null,"㎡",null,null,null,null,null,null,null,null,null,null,null,null,null,null,null,"㎡"]
[null,null,null,null,null,null,null,null,null,null,null,"㎡",null,null,null,null,null,null,null,null,null,null,null,null,null,null,null,"㎡"]
[null,null,null,null,null,null,null,null,null,null,null,"㎡",null,null,null,null,null,null,null,null,null,null,null,null,null,null,null,"㎡"]
[null,null,null,null,null,null,null,null,null,null,null,"㎡",null,null,null,null,null,null,null,null,null,null,null,null,null,null,null,"㎡"]
[null,null,null,null,null,null,null,null,null,null,null,"㎡",null,null,null,null,null,null,null,null,null,null,null,null,null,null,null,"㎡"]
[null,null,null,null,null,null,null,null,null,null,null,"㎡",null,null,null,null,null,null,null,null,null,null,null,null,null,null,null,"㎡"]
[null,null,null,null,null,null,null,null,null,null,null,"㎡",null,null,null,null,null,null,null,null,null,null,null,null,null,null,null,"㎡"]
[null,null,null,null,null,null,null,null,null,null,null,"㎡",null,null,null,null,null,null,null,null,null,null,null,null,null,null,null,"㎡"]
[null,null,null,null,null,null,null,null,null,null,null,"㎡",null,null,null,null,null,null,null,null,null,null,null,null,null,null,null,"㎡"]
[null,null,null,null,null,null,null,null,null,null,null,"㎡",null,null,null,null,null,null,null,null,null,null,null,null,null,null,null,"㎡"]
["　　　　　　　11　実習施設等",null,"施設名",null,null,null,null,"施設種別\n※複数ある場合は○を付した上で\n１つの種別を代表で記入",null,null,null,null,"法人名\n（設置主体）",null,null,null,null,"施設番号",null,"住所\n（所在地）",null,null,null,null,"区分","実習指導者",null,null,"実習指導者\n番号 ",null,"実習指導者\n調書\n頁番号",null,"調書出力",null,null,null,null,null,null,null,null,null,null,null,null,null,null,null,null,null,null,null,null,null,null,null,null,null,null,null,null,null,null,null,null,null,null,null,null,null,null,null,null,null,null,null,null,"■11実習施設等　処理可否判定フラグ"]
[null,null,null,null,null,null,null,null,null,null,null,null,null,null,null,null,null,null,null,null,null,null,null,null,null,null,null,null,null,null,{"$f":"IF(OR(R70<>\"\",AC70<>\"\"),R70&\"-\"&AC70&\".\",\"\")","v":""},null,null,null,null,null,null,null,null,null,null,null,null,null,null,null,null,null,null,null,null,null,null,null,null,null,null,null,null,null,null,null,null,null,null,null,null,null,null,null,null,null,null,null,null,null,null,{"$f":"IF(AND($C70=\"\",$I70=\"\",$M70=\"\",$R70=\"\",$T70=\"\",$Y70=\"\",$Z70=\"\",$AC70=\"\"),\"空白\",IF(AND($C70<>\"\",$I70<>\"\",$M70<>\"\",$R70<>\"\",$T70<>\"\",$Y70<>\"\",$Z70<>\"\",$AC70<>\"\"),\"入力済\",\"入力途中\"))","v":"空白"},"実習",null,null,"★"]
[null,null,null,null,null,null,null,null,null,null,null,null,null,null,null,null,null,null,null,null,null,null,null,null,null,null,null,null,null,null,"",null,"",null,null,null,null,null,null,null,null,null,null,null,null,null,null,null,null,null,null,null,null,null,null,null,null,null,null,null,null,null,null,null,null,null,null,null,null,null,null,null,null,null,null,null,null,{"$f":"IF(AND($C71=\"\",$I71=\"\",$M71=\"\",$R71=\"\",$T71=\"\",$Y71=\"\",$Z71=\"\",$AC71=\"\"),\"空白\",IF(AND($C71<>\"\",$I71<>\"\",$M71<>\"\",$R71<>\"\",$T71<>\"\",$Y71<>\"\",$Z71<>\"\",$AC71<>\"\"),\"入力済\",\"入力途中\"))","v":"空白"},"実習",null,null,"★"]
[null,null,null,null,null,null,null,null,null,null,null,null,null,null,null,null,null,null,null,null,null,null,null,null,null,null,null,null,null,null,"",null,"",null,null,null,null,null,null,null,null,null,null,null,null,null,null,null,null,null,null,null,null,null,null,null,null,null,null,null,null,null,null,null,null,null,null,null,null,null,null,null,null,null,null,null,null,"空白","実習",null,null,"★"]
[null,null,null,null,null,null,null,null,null,null,null,null,null,null,null,null,null,null,null,null,null,null,null,null,null,null,null,null,null,null,"",null,"",null,null,null,null,null,null,null,null,null,null,null,null,null,null,null,null,null,null,null,null,null,null,null,null,null,null,null,null,null,null,null,null,null,null,null,null,null,null,null,null,null,null,null,null,"空白","実習",null,null,"★"]
[null,null,null,null,null,null,null,null,null,null,null,null,null,null,null,null,null,null,null,null,null,null,null,null,null,null,null,null,null,null,"",null,"",null,null,null,null,null,null,null,null,null,null,null,null,null,null,null,null,null,null,null,null,null,null,null,null,null,null,null,null,null,null,null,null,null,null,null,null,null,null,null,null,null,null,null,null,"空白","実習",null,null,"★"]
[null,null,null,null,null,null,null,null,null,null,null,null,null,null,null,null,null,null,null,null,null,null,null,null,null,null,null,null,null,null,"",null,"",null,null,null,null,null,null,null,null,null,null,null,null,null,null,null,null,null,null,null,null,null,null,null,null,null,null,null,null,null,null,null,null,null,null,null,null,null,null,null,null,null,null,null,null,"空白","実習",null,null,"★"]
[null,null,null,null,null,null,null,null,null,null,null,null,null,null,null,null,null,null,null,null,null,null,null,null,null,null,null,null,null,null,"",null,"",null,null,null,null,null,null,null,null,null,null,null,null,null,null,null,null,null,null,null,null,null,null,null,null,null,null,null,null,null,null,null,null,null,null,null,null,null,null,null,null,null,null,null,null,"空白","実習",null,null,"★"]
[null,null,null,null,null,null,null,null,null,null,null,null,null,null,null,null,null,null,null,null,null,null,null,null,null,null,null,null,null,null,"",null,"",null,null,null,null,null,null,null,null,null,null,null,null,null,null,null,null,null,null,null,null,null,null,null,null,null,null,null,null,null,null,null,null,null,null,null,null,null,null,null,null,null,null,null,null,"空白","実習",null,null,"★"]
[null,null,null,null,null,null,null,null,null,null,null,null,null,null,null,null,null,null,null,null,null,null,null,null,null,null,null,null,null,null,"",null,"",null,null,null,null,null,null,null,null,null,null,null,null,null,null,null,null,null,null,null,null,null,null,null,null,null,null,null,null,null,null,null,null,null,null,null,null,null,null,null,null,null,null,null,null,"空白","実習",null,null,"★"]
[null,null,null,null,null,null,null,null,null,null,null,null,null,null,null,null,null,null,null,null,null,null,null,null,null,null,null,null,null,null,"",null,"",null,null,null,null,null,null,null,null,null,null,null,null,null,null,null,null,null,null,null,null,null,null,null,null,null,null,null,null,null,null,null,null,null,null,null,null,null,null,null,null,null,null,null,null,"空白","実習",null,null,"★"]
[null,null,null,null,null,null,null,null,null,null,null,null,null,null,null,null,null,null,null,null,null,null,null,null,null,null,null,null,null,null,"",null,"",null,null,null,null,null,null,null,null,null,null,null,null,null,null,null,null,null,null,null,null,null,null,null,null,null,null,null,null,null,null,null,null,null,null,null,null,null,null,null,null,null,null,null,null,"空白","実習",null,null,"★"]
[null,null,null,null,null,null,null,null,null,null,null,null,null,null,null,null,null,null,null,null,null,null,null,null,null,null,null,null,null,null,"",null,"",null,null,null,null,null,null,null,null,null,null,null,null,null,null,null,null,null,null,null,null,null,null,null,null,null,null,null,null,null,null,null,null,null,null,null,null,null,null,null,null,null,null,null,null,"空白","実習",null,null,"★"]
[null,null,null,null,null,null,null,null,null,null,null,null,null,null,null,null,null,null,null,null,null,null,null,null,null,null,null,null,null,null,"",null,"",null,null,null,null,null,null,null,null,null,null,null,null,null,null,null,null,null,null,null,null,null,null,null,null,null,null,null,null,null,null,null,null,null,null,null,null,null,null,null,null,null,null,null,null,"空白","実習",null,null,"★"]
[null,null,null,null,null,null,null,null,null,null,null,null,null,null,null,null,null,null,null,null,null,null,null,null,null,null,null,null,null,null,"",null,"",null,null,null,null,null,null,null,null,null,null,null,null,null,null,null,null,null,null,null,null,null,null,null,null,null,null,null,null,null,null,null,null,null,null,null,null,null,null,null,null,null,null,null,null,"空白","実習",null,null,"★"]
[null,null,null,null,null,null,null,null,null,null,null,null,null,null,null,null,null,null,null,null,null,null,null,null,null,null,null,null,null,null,"",null,"",null,null,null,null,null,null,null,null,null,null,null,null,null,null,null,null,null,null,null,null,null,null,null,null,null,null,null,null,null,null,null,null,null,null,null,null,null,null,null,null,null,null,null,null,"空白","実習",null,null,"★"]
[null,null,null,null,null,null,null,null,null,null,null,null,null,null,null,null,null,null,null,null,null,null,null,null,null,null,null,null,null,null,"",null,"",null,null,null,null,null,null,null,null,null,null,null,null,null,null,null,null,null,null,null,null,null,null,null,null,null,null,null,null,null,null,null,null,null,null,null,null,null,null,null,null,null,null,null,null,"空白","実習",null,null,"★"]
[null,null,"（注１）欄が不足する場合については、適宜追加のこと。"]
[null,null,"（注２）「設置年月日」欄については、指定科目等に係る課程を開設する年月日を記載すること。"]
[null,null,"（注３）７及び８の指針該当番号欄には、指針中の教員の要件のうち、該当する条項を記入すること。（【例】４－（３）－ア）"]
[null,null,"（注４）ソーシャルワーク演習を開講する場合には、【履修】欄に開講科目の名称を記載すること。また、社会福祉士の指定科目であるソーシャルワーク演習（以下、"]
[null,null,null,"「ソーシャルワーク演習（社会）」という。）を履修することにより、ソーシャルワーク演習の履修を免除させる場合には、【免除】欄にソーシャルワーク演習（社会）"]
[null,null,null,"の開講科目の名称を記載すること。さらに、直近の社会福祉士にかかる大学等確認変更届又は大学等確認申請書を提出した日及び提出先を記載すること。"]
[]
[null,null,null,null,"【例１】ソーシャルワーク演習を開講し、またソーシャルワーク演習（社会）の履修によりソーシャルワーク演習を免除させる場合"]
[null,null,null,null,"ソーシャルワーク演習",null,null,null,null,null,null,"【履修】",null,"ソーシャルワーク演習"]
[null,null,null,null,null,null,null,null,null,null,null,"【免除】",null,"ソーシャルワーク演習（○○厚生局令和○○年○○月○○日）"]
[]
[null,null,null,null,"【例２】ソーシャルワーク演習を開講し、またソーシャルワーク演習（社会）を開講しない場合"]
[null,null,null,null,"ソーシャルワーク演習",null,null,null,null,null,null,"【履修】",null,"ソーシャルワーク演習"]
[null,null,null,null,null,null,null,null,null,null,null,"【免除】"]
[]
[null,null,null,null,"【例３】ソーシャルワーク演習を開講せず、ソーシャルワーク演習（社会）の履修によりソーシャルワーク演習を免除させる場合"]
[null,null,null,null,"ソーシャルワーク演習",null,null,null,null,null,null,"【履修】"]
[null,null,null,null,null,null,null,null,null,null,null,"【免除】",null,"ソーシャルワーク演習（○○厚生局令和○○年○○月○○日）"]
[null,null,"添付書類"]
[null,null,"１　実習施設の設置者の承諾書"]
[null,null,"２　実習施設の概要等"]
[null,null,"３　学　則"]
[null,null,"４　時間割及び授業概要（実習演習科目について、「大学等において開講する精神障害者の保健及び福祉に関する科目の確認に係る指針」別表１の"]
[null,null,"教育に含むべき事項に該当する箇所に下線を引くこと。）"]
[null,null,"５ 実習計画"]
[null,null,"※通信課程を設ける場合は以下の書類を添付すること"]
[null,null,"６　通信養成を行う地域"]
[null,null,"７ 添削その他の指導の方法"]
[null,null,"８　面接授業実施期間における講義室及び演習室の使用についての当該施設の設置者の承諾書"]
[null,null,"９　通信養成に使用する教材"]
["★指針該当番号　選択肢",null,null,null,null,null,null,null,null,null,null,null,null,null,null,null,null,null,null,null,null,null,null,null,null,null,null,null,null,null,null,"★実習施設　施設種別"]
["４－（３）－ア",null,null,null,"学校教育法（昭和２２年法律第２６号）に基づく大学（大学院及び短期大学を含む）及びこれらに準ずる教育施設において、教授、准教授、助教又は講師（非常勤を含む。）として、精神保健福祉士の養成に係る実習又は演習の指導に関し５年以上の経験を有する者",null,null,null,null,null,null,null,null,null,null,null,null,null,null,null,null,null,null,null,null,null,null,null,null,null,null,"精神科病院等　※施設種別対応表参照"]
["４－（３）－イ",null,null,null,"学校教育法に基づく専修学校の専門課程又は各種学校の専任教員として、精神保健福祉士の養成に係る実習又は演習の指導に関し５年以上の経験を有する者",null,null,null,null,null,null,null,null,null,null,null,null,null,null,null,null,null,null,null,null,null,null,null,null,null,null,"市役所、区役所、町村役場"]
["４－（３）－ウ",null,null,null,"精神保健福祉士の資格を取得した後、相談援助の業務に５年以上従事した経験を有する者",null,null,null,null,null,null,null,null,null,null,null,null,null,null,null,null,null,null,null,null,null,null,null,null,null,null,"保健所、市町村保健センター"]
["４－（３）－エ",null,null,null,"精神保健福祉士実習演習担当教員講習会を修了した者その他その者に準ずるものとして厚生労働大臣が別に定める者",null,null,null,null,null,null,null,null,null,null,null,null,null,null,null,null,null,null,null,null,null,null,null,null,null,null,"障害児通所支援事業等　※施設種別対応表参照"]
["４－（３）－オ",null,null,null,"学校教育法の一部を改正する法律（平成１７年法律第８３号）による改正前の学校教育法第５８条第７項の助教授の職にあった者は、アの規定の適用については准教授の職にあった者とみなすこと。",null,null,null,null,null,null,null,null,null,null,null,null,null,null,null,null,null,null,null,null,null,null,null,null,null,null,"精神保健福祉センター"]
["４－（３）－カ",null,null,null,"社会福祉に関する科目を定める省令（平成２０年文部科学省令・厚生労働省令第３号）第４条第１項第２号イからニまでに掲げる者のいずれかに該当する者（ただし、ソーシャルワーク演習に限る。）",null,null,null,null,null,null,null,null,null,null,null,null,null,null,null,null,null,null,null,null,null,null,null,null,null,null,"救護施設、更生施設"]
["※４－（３）－カは令和3年4月１日以降のカリキュラムのみ該当",null,null,null,null,null,null,null,null,null,null,null,null,null,null,null,null,null,null,null,null,null,null,null,null,null,null,null,null,null,null,"福祉に関する事務所"]
[null,null,null,null,null,null,null,null,null,null,null,null,null,null,null,null,null,null,null,null,null,null,null,null,null,null,null,null,null,null,null,"知的障害者更生相談所"]
[null,null,null,null,null,null,null,null,null,null,null,null,null,null,null,null,null,null,null,null,null,null,null,null,null,null,null,null,null,null,null,"広域障害者職業センター等　※施設種別対応表参照"]
[null,null,null,null,null,null,null,null,null,null,null,null,null,null,null,null,null,null,null,null,null,null,null,null,null,null,null,null,null,null,null,"地域包括支援センター"]
[null,null,null,null,null,null,null,null,null,null,null,null,null,null,null,null,null,null,null,null,null,null,null,null,null,null,null,null,null,null,null,"保護観察所、更生保護施設"]
[null,null,null,null,null,null,null,null,null,null,null,null,null,null,null,null,null,null,null,null,null,null,null,null,null,null,null,null,null,null,null,"ホームレス自立支援事業を実施する施設"]
[null,null,null,null,null,null,null,null,null,null,null,null,null,null,null,null,null,null,null,null,null,null,null,null,null,null,null,null,null,null,null,"発達障害者支援センター"]
[null,null,null,null,null,null,null,null,null,null,null,null,null,null,null,null,null,null,null,null,null,null,null,null,null,null,null,null,null,null,null,"障害福祉サービス事業(生活介護等）※施設種別対応表参照"]
[null,null,null,null,null,null,null,null,null,null,null,null,null,null,null,null,null,null,null,null,null,null,null,null,null,null,null,null,null,null,null,"精神障害者が住み慣れた地域を拠点とし、本人の意向に即して、本人が充実した生活を送ることができるよう、関係機関の連携の下で、医療、福祉等の支援を行うという観点から、統合失調症を始めとする入院患者の減少及び地域生活への移行に向けた支援並びに地域生活を継続するための支援を推進する事業を実施する施設"]
[null,null,null,null,null,null,null,null,null,null,null,null,null,null,null,null,null,null,null,null,null,null,null,null,null,null,null,null,null,null,null,"いじめ、不登校、暴力行為、児童虐待など生徒指導上の課題に対応するため、教育分野に関する知識に加えて、社会福祉等の専門的な知識・技術を用いて、児童生徒の置かれた様々な環境に働きかけて支援を行うスクールソーシャルワーカーを配置し、教育相談体制を整備する事業を実施する施設"]
[null,null,null,null,null,null,null,null,null,null,null,null,null,null,null,null,null,null,null,null,null,null,null,null,null,null,null,null,null,null,null,"厚生労働大臣が認める施設又は事業　※要個別認定"]

{"sheet":"Format_教員に関する調書","index":6,"n_rows":62,"n_cols":80,"rows_kept":62,"cut":false,"hidden":true,"merged":[[58,0,58,3],[58,4,58,29],[59,0,59,3],[59,4,59,29],[60,0,60,3],[60,4,60,29],[61,0,61,3],[61,4,61,29],[32,2,35,2],[40,7,40,19],[40,20,40,25],[40,0,43,6],[41,7,41,19],[41,20,41,25],[42,7,42,19],[42,20,42,25],[36,3,36,8],[36,9,36,19],[36,20,36,25],[37,3,37,8],[37,9,37,19],[37,20,37,25],[38,20,38,25],[35,3,35,8],[12,7,12,8],[32,3,32,8],[32,9,32,19],[32,20,32,25],[31,3,31,19],[31,20,31,21],[31,23,31,24],[29,26,30,26],[29,27,30,27],[13,17,13,19],[13,20,13,25],[29,3,30,8],[29,9,30,19],[23,26,24,26],[23,27,24,27],[12,9,12,10],[12,11,12,13],[12,14,12,16],[12,17,12,19],[13,7,13,8],[27,3,28,8],[27,9,28,19],[27,26,28,26],[27,27,28,27],[19,3,20,8],[19,9,20,19],[19,26,20,26],[19,27,20,27],[19,28,20,28],[39,3,39,8],[39,9,39,19],[39,20,39,25],[38,3,38,8],[38,9,38,19],[23,28,24,28],[35,9,35,19],[35,20,35,25],[17,3,18,8],[17,9,18,19],[17,26,18,26],[17,27,18,27],[17,28,18,28],[54,0,54,3],[54,4,54,29],[51,0,51,3],[51,4,51,29],[52,0,52,3],[52,4,52,29],[53,0,53,3],[53,4,53,29],[49,0,49,3],[49,4,49,29],[50,0,50,3],[50,4,50,29],[14,2,31,2],[14,3,14,8],[14,9,14,19],[14,20,14,25],[14,26,14,29],[15,3,16,8],[15,9,16,19],[29,29,30,29],[25,3,26,8],[25,9,26,19],[25,26,26,26],[25,27,26,27],[25,28,26,28],[25,29,26,29],[23,29,24,29],[21,3,22,8],[21,9,22,19],[27,29,28,29],[29,28,30,28],[27,28,28,28],[9,2,9,9],[9,10,9,25],[11,17,11,19],[7,0,7,3],[7,4,7,25],[11,20,11,25],[8,2,8,8],[8,9,8,25],[10,3,10,8],[10,9,10,10],[10,11,10,13],[10,14,10,16],[10,17,10,19],[10,20,10,25],[10,2,13,2],[11,3,13,6],[12,20,12,25],[13,9,13,10],[13,11,13,13],[13,14,13,16],[8,0,39,1],[36,2,39,2],[23,3,24,8],[23,9,24,19],[0,24,0,25],[1,0,1,25],[3,0,3,3],[3,4,3,25],[4,0,4,3],[2,0,2,3],[2,4,2,25],[4,4,4,14],[5,0,6,3],[5,4,6,25],[11,9,11,10],[11,11,11,13],[11,14,11,16],[11,7,11,8],[41,26,41,29],[42,26,42,29],[43,26,43,29],[33,3,33,8],[33,9,33,19],[33,20,33,25],[33,26,33,29],[34,26,34,29],[35,26,35,29],[37,26,37,29],[38,26,38,29],[39,26,39,29],[19,29,20,29],[43,7,43,19],[43,20,43,25],[34,3,34,8],[34,9,34,19],[34,20,34,25],[15,26,16,26],[15,27,16,27],[10,26,10,29],[11,26,11,29],[12,26,12,29],[13,26,13,29],[4,26,4,29],[17,29,18,29],[15,29,16,29],[21,26,22,26],[21,27,22,27],[21,28,22,28],[21,29,22,29],[15,28,16,28]]}
[null,null,null,null,null,null,null,null,null,null,null,null,null,null,null,null,null,null,null,null,null,null,null,"教員調書頁番号　：",null,null,null,null,null,null,null,null,null,null,null,null,null,null,null,null,null,null,null,null,null,null,null,null,null,null,null,null,null,null,null,null,null,null,null,null,null,null,null,null,null,null,null,null,null,null,null,null,null,null,null,null,null,"■処理変数保持エリア"]
["教員に関する調書",null,null,null,null,null,null,null,null,null,null,null,null,null,null,null,null,null,null,null,null,null,null,null,null,null,null,null,null,null,null,null,null,null,null,null,null,null,null,null,null,null,null,null,null,null,null,null,null,null,null,null,null,null,null,null,null,null,null,null,null,null,null,null,null,null,null,null,null,null,null,null,null,null,null,null,null,"教育歴・職歴行数",8,{"$f":"CA2","v":8}]
["大学等名",null,null,null,"#=IF('大学等確認申請書（変更届）'!E3<>\"\",'大学等確認申請書（変更届）'!E3,\"\")",null,null,null,null,null,null,null,null,null,null,null,null,null,null,null,null,null,null,null,null,null,null,null,null,null,null,null,null,null,null,null,null,null,null,null,null,null,null,null,null,null,null,null,null,null,null,null,null,null,null,null,null,null,null,null,null,null,null,null,null,null,null,null,null,null,null,null,null,null,null,null,null,"資格・免許行数",3,{"$f":"SUM($CA$3,$CA$2*2)-14","v":5}]
["氏　　名",null,null,null,"#=IF(ISERROR(INDEX('大学等確認申請書（変更届）'!$E$<<開始行>>:$AH$<<終了行>>,MATCH($Y$1,'大学等確認申請書（変更届）'!$CB$<<開始行>>:$CB$<<終了行>>,0),1)),\n    \"\",\n       IF(INDEX('大学等確認申請書（変更届）'!$E$<<開始行>>:$AH$<<終了行>>,MATCH($Y$1,'大学等確認申請書（変更届）'!$CB$<<開始行>>:$CB$<<終了行>>,0),1)<>\"\",\n          INDEX('大学等確認申請書（変更届）'!$E$<<開始行>>:$AH$<<終了行>>,MATCH($Y$1,'大学等確認申請書（変更届）'!$CB$<<開始行>>:$CB$<<終了行>>,0),1)\n          )\n      )",null,null,null,null,null,null,null,null,null,null,null,null,null,null,null,null,null,null,null,null,null,"■年月日和暦確認用",null,null,null,null,null,null,null,null,null,null,null,null,null,null,null,null,null,null,null,null,null,null,null,null,null,null,null,null,null,null,null,null,null,null,null,null,null,null,null,null,null,null,null,null,null,null,null,null,null,null,"学位行数",3,{"$f":"SUM($CA$4,$CA$2*2,$CA$3)-17","v":5}]
["生年月日",null,null,null,"0000/0/0",null,null,null,null,null,null,null,null,null,null,null,null,null,null,null,null,null,null,null,null,null,{"$f":"E5","v":"0000/0/0"},null,null,null,null,null,null,null,null,null,null,null,null,null,null,null,null,null,null,null,null,null,null,null,null,null,null,null,null,null,null,null,null,null,null,null,null,null,null,null,null,null,null,null,null,null,null,null,null,null,null,"研究・論文行数",3,{"$f":"SUM($CA$5,$CA$2*2,$CA$3,$CA$4)-21","v":4}]
["最終学歴\n（学部、学科、専攻）"]
[null,null,null,null,null,null,null,null,null,null,null,null,null,null,null,null,null,null,null,null,null,null,null,null,null,null,null,null,null,null,"■入力チェック欄"]
["担当科目",null,null,null,"#=IF(ISERROR(INDEX('大学等確認申請書（変更届）'!$E$<<開始行>>:$AH$<<終了行>>,MATCH($Y$1,'大学等確認申請書（変更届）'!$CB$<<開始行>>:$CB$<<終了行>>,0),7)),\n    \"\",\n       IF(INDEX('大学等確認申請書（変更届）'!$E$<<開始行>>:$AH$<<終了行>>,MATCH($Y$1,'大学等確認申請書（変更届）'!$CB$<<開始行>>:$CB$<<終了行>>,0),7)<>\"\",\n          SUBSTITUTE(INDEX('大学等確認申請書（変更届）'!$E$<<開始行>>:$AH$<<終了行>>,MATCH($Y$1,'大学等確認申請書（変更届）'!$CB$<<開始行>>:$CB$<<終了行>>,0),7),\n                     CHAR(10),\n                     \"、\"\n                     )\n          )\n     )\n",null,null,null,null,null,null,null,null,null,null,null,null,null,null,null,null,null,null,null,null,null,null,null,null,null,"ア","イ","ウ"]
["教　員　資　格　要　件",null,"指針該当番号",null,null,null,null,null,null,"#=IF(ISERROR(INDEX('大学等確認申請書（変更届）'!$E$<<開始行>>:$AH$<<終了行>>,MATCH($Y$1,'大学等確認申請書（変更届）'!$CB$<<開始行>>:$CB$<<終了行>>,0),21)),\n    \"\",\n       IF(INDEX('大学等確認申請書（変更届）'!$E$<<開始行>>:$AH$<<終了行>>,MATCH($Y$1,'大学等確認申請書（変更届）'!$CB$<<開始行>>:$CB$<<終了行>>,0),21)<>\"\",\n          INDEX('大学等確認申請書（変更届）'!$E$<<開始行>>:$AH$<<終了行>>,MATCH($Y$1,'大学等確認申請書（変更届）'!$CB$<<開始行>>:$CB$<<終了行>>,0),21)\n          )\n      )",null,null,null,null,null,null,null,null,null,null,null,null,null,null,null,null,null,null,null,null,{"$f":"IF(AND($J$9=\"４－（３）－ア\",U32>=5),\"OK\",IF(AND($J$9=\"４－（３）－ア\",U32<5),\"NG\",\"else\"))","v":"else"},{"$f":"IF(AND($J$9=\"４－（３）－イ\",U32>=5),\"OK\",IF(AND($J$9=\"４－（３）－イ\",U32<5),\"NG\",\"else\"))","v":"else"},{"$f":"IF(AND($J$9=\"４－（３）－ウ\",U32>=5,$AE$11=\"精神入力OK\"),\"OK\",IF(AND($J$9=\"４－（３）－ウ\",OR(U32<5,$AE$11<>\"精神入力OK\")),\"NG\",\"else\"))","v":"else"}]
[null,null,"4-3-カの場合、指針該当番号を選択\n（社会福祉に関する科目を定める省令\n第４条第１項第２号イからニ）",null,null,null,null,null,null,null,null,null,null,null,null,null,null,null,null,null,null,null,null,null,null,null,"■年月日和暦確認用",null,null,null,{"$f":"IF(OR(AND($J$9=\"４－（３）－カ\",$K$10<>\"\"),$J$9<>\"４－（３）－カ\"),\"カ入力OK\",\"カ入力NG\")","v":"カ入力OK"},null,null,null,null,null,null,null,null,null,null,null,null,null,null,null,null,null,null,null,null,null,null,null,null,null,null,null,null,null,null,null,null,null,null,null,null,null,null,null,null,null,null,null,null,null,null,"突合検索キー","検証用Matchキー"]
[null,null,"要件確認","精神保健福祉士資格有無",null,null,null,null,null,null,null,"登録番号",null,null,null,null,null,"登録年月日",null,null,"0000/0/0",null,null,null,null,null,{"$f":"U11","v":"0000/0/0"},null,null,null,{"$f":"IF(OR(AND($J11=\"１．取得\",$O11<>\"\",$U11<>\"\",$U11<>\"0000/0/0\"),$J11=\"２．未取得\"),\"精神入力OK\",\"精神入力NG\")","v":"精神入力NG"},null,null,null,null,null,null,null,null,null,null,null,null,null,null,null,null,null,null,null,null,null,null,null,null,null,null,null,null,null,null,null,null,null,null,null,null,null,null,null,null,null,null,null,null,null,null,{"$f":"IF($J$11=\"１．取得\",\n      SUBSTITUTE(SUBSTITUTE($O$11, \"　\", \"\"), \" \", \"\")&\"_\"&TEXT($U$11,\"yyyy/mm/dd\"),\n      \"\")","v":""},{"$f":"IF($J$11=\"１．取得\",\n      TEXT($E$5,\"yyyy/mm/dd\"),\n      \"\")","v":""},"精神保健福祉士"]
[null,null,null,"精神保健福祉士実習演習担当教員講習会",null,null,null,"基礎",null,null,null,"修了番号",null,null,null,null,null,"修了年月日",null,null,"0000/0/0",null,null,null,null,null,{"$f":"U12","v":"0000/0/0"},null,null,null,{"$f":"IF(OR(AND($J12=\"１．修了\",$O12<>\"\",$U12<>\"\",$U12<>\"0000/0/0\"),$J12=\"２．未修了\"),\"講習入力OK\",\"講習入力NG\")","v":"講習入力NG"},null,null,null,null,null,null,null,null,null,null,null,null,null,null,null,null,null,null,null,null,null,null,null,null,null,null,null,null,null,null,null,null,null,null,null,null,null,null,null,null,null,null,null,null,null,null,{"$f":"IF($J$12=\"１．修了\",\n      $H$12&\"_\"&SUBSTITUTE(SUBSTITUTE($O$12, \"　\", \"\"), \" \", \"\")&\"_\"&TEXT($U$12,\"yyyy\"),\n      \"\")","v":""},{"$f":"IF($J$12=\"１．修了\",\n      TEXT($E$5,\"yyyy/mm/dd\"),\n      \"\")","v":""},"担当教員_基礎"]
[null,null,null,null,null,null,null,"実習",null,null,null,"修了番号",null,null,null,null,null,"修了年月日",null,null,"0000/0/0",null,null,null,null,null,{"$f":"U13","v":"0000/0/0"},null,null,null,{"$f":"IF(OR(AND($J13=\"１．修了\",$O13<>\"\",$U13<>\"\",$U13<>\"0000/0/0\"),$J13=\"２．未修了\"),\"講習入力OK\",\"講習入力NG\")","v":"講習入力NG"},null,null,null,null,null,null,null,null,null,null,null,null,null,null,null,null,null,null,null,null,null,null,null,null,null,null,null,null,null,null,null,null,null,null,null,null,null,null,null,null,null,null,null,null,null,null,{"$f":"IF($J$13=\"１．修了\",\n       $H$13&\"_\"&SUBSTITUTE(SUBSTITUTE($O$13, \"　\", \"\"), \" \", \"\")&\"_\"&TEXT($U$13,\"yyyy\"),\n      \"\")","v":""},{"$f":"IF($J$13=\"１．修了\",\n      TEXT($E$5,\"yyyy/mm/dd\"),\n      \"\")","v":""},"担当教員_実習"]
[null,null,null,null,null,null,null,"演習",null,null,null,"修了番号",null,null,null,null,null,"修了年月日",null,null,"0000/0/0",null,null,null,null,null,{"$f":"U14","v":"0000/0/0"},null,null,null,{"$f":"IF(OR(AND($J14=\"１．修了\",$O14<>\"\",$U14<>\"\",$U14<>\"0000/0/0\"),$J14=\"２．未修了\"),\"講習入力OK\",\"講習入力NG\")","v":"講習入力NG"},null,null,null,null,null,null,null,null,null,null,null,null,null,null,null,null,null,null,null,null,null,null,null,null,null,null,null,null,null,null,null,null,null,null,null,null,null,null,null,null,null,null,null,null,null,null,{"$f":"IF($J$14=\"１．修了\",\n       $H$14&\"_\"&SUBSTITUTE(SUBSTITUTE($O$14, \"　\", \"\"), \" \", \"\")&\"_\"&TEXT($U$14,\"yyyy\"),\n      \"\")","v":""},{"$f":"IF($J$14=\"１．修了\",\n      TEXT($E$5,\"yyyy/mm/dd\"),\n      \"\")","v":""},"担当教員_演習"]
[null,null,"教育歴・職歴","名　　　称",null,null,null,null,null,"教育内容又は業務内容",null,null,null,null,null,null,null,null,null,null,"年　　　月",null,null,null,null,null,"合計"]
[null,null,null,null,null,null,null,null,null,null,null,null,null,null,null,null,null,null,null,null,null,"西暦",null,"年",null,"月",{"$f":"IF(Y17<Y16,W17-W16-1,W17-W16)","v":0},"年",{"$f":"IF(Y17<Y16,12+Y17-Y16,Y17-Y16)+IF(OR(Y16=0,Y17=0),0,1)","v":0},"月",{"$f":"IF(AND($D16<>\"\",$J16<>\"\",$W16<>\"\",$W17<>\"\",$Y16<>\"\",$Y17<>\"\"),\"入力済\",IF(AND($D16=\"\",$J16=\"\",$W16=\"\",$W17=\"\",$Y16=\"\",$Y17=\"\"),\"空白\",\"入力途中\"))","v":"空白"}]
[null,null,null,null,null,null,null,null,null,null,null,null,null,null,null,null,null,null,null,null,"～","西暦",null,"年",null,"月"]
[null,null,null,null,null,null,null,null,null,null,null,null,null,null,null,null,null,null,null,null,null,"西暦",null,"年",null,"月",{"$f":"IF(Y19<Y18,W19-W18-1,W19-W18)","v":0},"年",{"$f":"IF(Y19<Y18,12+Y19-Y18,Y19-Y18)+IF(OR(Y18=0,Y19=0),0,1)","v":0},"月",{"$f":"IF(AND($D18<>\"\",$J18<>\"\",$W18<>\"\",$W19<>\"\",$Y18<>\"\",$Y19<>\"\"),\"入力済\",IF(AND($D18=\"\",$J18=\"\",$W18=\"\",$W19=\"\",$Y18=\"\",$Y19=\"\"),\"空白\",\"入力途中\"))","v":"空白"}]
[null,null,null,null,null,null,null,null,null,null,null,null,null,null,null,null,null,null,null,null,"～","西暦",null,"年",null,"月"]
[null,null,null,null,null,null,null,null,null,null,null,null,null,null,null,null,null,null,null,null,null,"西暦",null,"年",null,"月",{"$f":"IF(Y21<Y20,W21-W20-1,W21-W20)","v":0},"年",{"$f":"IF(Y21<Y20,12+Y21-Y20,Y21-Y20)+IF(OR(Y20=0,Y21=0),0,1)","v":0},"月",{"$f":"IF(AND($D20<>\"\",$J20<>\"\",$W20<>\"\",$W21<>\"\",$Y20<>\"\",$Y21<>\"\"),\"入力済\",IF(AND($D20=\"\",$J20=\"\",$W20=\"\",$W21=\"\",$Y20=\"\",$Y21=\"\"),\"空白\",\"入力途中\"))","v":"空白"}]
[null,null,null,null,null,null,null,null,null,null,null,null,null,null,null,null,null,null,null,null,"～","西暦",null,"年",null,"月"]
[null,null,null,null,null,null,null,null,null,null,null,null,null,null,null,null,null,null,null,null,null,"西暦",null,"年",null,"月",{"$f":"IF(Y23<Y22,W23-W22-1,W23-W22)","v":0},"年",{"$f":"IF(Y23<Y22,12+Y23-Y22,Y23-Y22)+IF(OR(Y22=0,Y23=0),0,1)","v":0},"月",{"$f":"IF(AND($D22<>\"\",$J22<>\"\",$W22<>\"\",$W23<>\"\",$Y22<>\"\",$Y23<>\"\"),\"入力済\",IF(AND($D22=\"\",$J22=\"\",$W22=\"\",$W23=\"\",$Y22=\"\",$Y23=\"\"),\"空白\",\"入力途中\"))","v":"空白"}]
[null,null,null,null,null,null,null,null,null,null,null,null,null,null,null,null,null,null,null,null,"～","西暦",null,"年",null,"月"]
[null,null,null,null,null,null,null,null,null,null,null,null,null,null,null,null,null,null,null,null,null,"西暦",null,"年",null,"月",{"$f":"IF(Y25<Y24,W25-W24-1,W25-W24)","v":0},"年",{"$f":"IF(Y25<Y24,12+Y25-Y24,Y25-Y24)+IF(OR(Y24=0,Y25=0),0,1)","v":0},"月",{"$f":"IF(AND($D24<>\"\",$J24<>\"\",$W24<>\"\",$W25<>\"\",$Y24<>\"\",$Y25<>\"\"),\"入力済\",IF(AND($D24=\"\",$J24=\"\",$W24=\"\",$W25=\"\",$Y24=\"\",$Y25=\"\"),\"空白\",\"入力途中\"))","v":"空白"}]
[null,null,null,null,null,null,null,null,null,null,null,null,null,null,null,null,null,null,null,null,"～","西暦",null,"年",null,"月"]
[null,null,null,null,null,null,null,null,null,null,null,null,null,null,null,null,null,null,null,null,null,"西暦",null,"年",null,"月",{"$f":"IF(Y27<Y26,W27-W26-1,W27-W26)","v":0},"年",{"$f":"IF(Y27<Y26,12+Y27-Y26,Y27-Y26)+IF(OR(Y26=0,Y27=0),0,1)","v":0},"月",{"$f":"IF(AND($D26<>\"\",$J26<>\"\",$W26<>\"\",$W27<>\"\",$Y26<>\"\",$Y27<>\"\"),\"入力済\",IF(AND($D26=\"\",$J26=\"\",$W26=\"\",$W27=\"\",$Y26=\"\",$Y27=\"\"),\"空白\",\"入力途中\"))","v":"空白"}]
[null,null,null,null,null,null,null,null,null,null,null,null,null,null,null,null,null,null,null,null,"～","西暦",null,"年",null,"月"]
[null,null,null,null,null,null,null,null,null,null,null,null,null,null,null,null,null,null,null,null,null,"西暦",null,"年",null,"月",{"$f":"IF(Y29<Y28,W29-W28-1,W29-W28)","v":0},"年",{"$f":"IF(Y29<Y28,12+Y29-Y28,Y29-Y28)+IF(OR(Y28=0,Y29=0),0,1)","v":0},"月",{"$f":"IF(AND($D28<>\"\",$J28<>\"\",$W28<>\"\",$W29<>\"\",$Y28<>\"\",$Y29<>\"\"),\"入力済\",IF(AND($D28=\"\",$J28=\"\",$W28=\"\",$W29=\"\",$Y28=\"\",$Y29=\"\"),\"空白\",\"入力途中\"))","v":"空白"}]
[null,null,null,null,null,null,null,null,null,null,null,null,null,null,null,null,null,null,null,null,"～","西暦",null,"年",null,"月"]
[null,null,null,null,null,null,null,null,null,null,null,null,null,null,null,null,null,null,null,null,null,"西暦",null,"年",null,"月",{"$f":"IF(Y31<Y30,W31-W30-1,W31-W30)","v":0},"年",{"$f":"IF(Y31<Y30,12+Y31-Y30,Y31-Y30)+IF(OR(Y30=0,Y31=0),0,1)","v":0},"月",{"$f":"IF(AND($D30<>\"\",$J30<>\"\",$W30<>\"\",$W31<>\"\",$Y30<>\"\",$Y31<>\"\"),\"入力済\",IF(AND($D30=\"\",$J30=\"\",$W30=\"\",$W31=\"\",$Y30=\"\",$Y31=\"\"),\"空白\",\"入力途中\"))","v":"空白"}]
[null,null,null,null,null,null,null,null,null,null,null,null,null,null,null,null,null,null,null,null,"～","西暦",null,"年",null,"月"]
[null,null,null,"合　　　　　　計",null,null,null,null,null,null,null,null,null,null,null,null,null,null,null,null,{"$f":"SUM(AA16:AA32)+ROUNDDOWN(SUM(AC16:AC32)/12,0)","v":0},null,"年",{"$f":"SUM(AC16:AC32)-12*ROUNDDOWN(SUM(AC16:AC32)/12,0)","v":0},null,"月",null,null,null,null,null,null,null,null,null,null,null,null,null,null,null,null,null,null,null,null,null,null,null,null,null,null,null,null,null,null,null,null,null,null,null,null,null,null,null,null,null,null,null,null,null,null,null,null,null,null,null,"↓転記用資格名"]
[null,null,"資格・免許・社会講習会","名　　　称",null,null,null,null,null,"取得機関",null,null,null,null,null,null,null,null,null,null,"取得年月日",null,null,null,null,null,"■年月日和暦確認用",null,null,null,null,null,null,null,null,null,null,null,null,null,null,null,null,null,null,null,null,null,null,null,null,null,null,null,null,null,null,null,null,null,null,null,null,null,null,null,null,null,null,null,null,null,null,null,null,null,null,{"$f":"IF($J$11= \"１．取得\",\"精神保健福祉士\n\",\"\")","v":""}]
[null,null,null,null,null,null,null,null,null,null,null,null,null,null,null,null,null,null,null,null,"0000/0/0",null,null,null,null,null,{"$f":"U34","v":"0000/0/0"},null,null,null,{"$f":"IF(AND($D34<>\"\",$J34<>\"\",$U34<>\"\",$U34<>\"0000/0/0\"),\"入力済\",IF(AND($D34=\"\",$J34=\"\",OR($U34=\"\",$U34=\"0000/0/0\")),\"空白\",\"入力途中\"))","v":"空白"},null,null,null,null,null,null,null,null,null,null,null,null,null,null,null,null,null,null,null,null,null,null,null,null,null,null,null,null,null,null,null,null,null,null,null,null,null,null,null,null,null,null,null,null,null,null,{"$f":"IF($D34<> \"\",$D34&\"\n\",\"\")","v":""}]
[null,null,null,null,null,null,null,null,null,null,null,null,null,null,null,null,null,null,null,null,"0000/0/0",null,null,null,null,null,{"$f":"U35","v":"0000/0/0"},null,null,null,{"$f":"IF(AND($D35<>\"\",$J35<>\"\",$U35<>\"\",$U35<>\"0000/0/0\"),\"入力済\",IF(AND($D35=\"\",$J35=\"\",OR($U35=\"\",$U35=\"0000/0/0\")),\"空白\",\"入力途中\"))","v":"空白"},null,null,null,null,null,null,null,null,null,null,null,null,null,null,null,null,null,null,null,null,null,null,null,null,null,null,null,null,null,null,null,null,null,null,null,null,null,null,null,null,null,null,null,null,null,null,{"$f":"IF($D35<> \"\",$D35&\"\n\",\"\")","v":""}]
[null,null,null,null,null,null,null,null,null,null,null,null,null,null,null,null,null,null,null,null,"0000/0/0",null,null,null,null,null,{"$f":"U36","v":"0000/0/0"},null,null,null,{"$f":"IF(AND($D36<>\"\",$J36<>\"\",$U36<>\"\",$U36<>\"0000/0/0\"),\"入力済\",IF(AND($D36=\"\",$J36=\"\",OR($U36=\"\",$U36=\"0000/0/0\")),\"空白\",\"入力途中\"))","v":"空白"},null,null,null,null,null,null,null,null,null,null,null,null,null,null,null,null,null,null,null,null,null,null,null,null,null,null,null,null,null,null,null,null,null,null,null,null,null,null,null,null,null,null,null,null,null,null,{"$f":"IF($D36<> \"\",$D36&\"\n\",\"\")","v":""}]
[null,null,"学位","名　　　称",null,null,null,null,null,"取得機関",null,null,null,null,null,null,null,null,null,null,"取得年月日",null,null,null,null,null,"■年月日和暦確認用"]
[null,null,null,null,null,null,null,null,null,null,null,null,null,null,null,null,null,null,null,null,"0000/0/0",null,null,null,null,null,{"$f":"U38","v":"0000/0/0"},null,null,null,{"$f":"IF(AND($D38<>\"\",$J38<>\"\",$U38<>\"\",$U38<>\"0000/0/0\"),\"入力済\",IF(AND($D38=\"\",$J38=\"\",OR($U38=\"\",$U38=\"0000/0/0\")),\"空白\",\"入力途中\"))","v":"空白"}]
[null,null,null,null,null,null,null,null,null,null,null,null,null,null,null,null,null,null,null,null,"0000/0/0",null,null,null,null,null,{"$f":"U39","v":"0000/0/0"},null,null,null,{"$f":"IF(AND($D39<>\"\",$J39<>\"\",$U39<>\"\",$U39<>\"0000/0/0\"),\"入力済\",IF(AND($D39=\"\",$J39=\"\",OR($U39=\"\",$U39=\"0000/0/0\")),\"空白\",\"入力途中\"))","v":"空白"}]
[null,null,null,null,null,null,null,null,null,null,null,null,null,null,null,null,null,null,null,null,"0000/0/0",null,null,null,null,null,{"$f":"U40","v":"0000/0/0"},null,null,null,{"$f":"IF(AND($D40<>\"\",$J40<>\"\",$U40<>\"\",$U40<>\"0000/0/0\"),\"入力済\",IF(AND($D40=\"\",$J40=\"\",OR($U40=\"\",$U40=\"0000/0/0\")),\"空白\",\"入力途中\"))","v":"空白"}]
["担当予定科目に関する研究発表\n又は論文（主なもの）",null,null,null,null,null,null,"名　　　　　　称",null,null,null,null,null,null,null,null,null,null,null,null,"年　　月",null,null,null,null,null,"■年月日和暦確認用"]
[null,null,null,null,null,null,null,null,null,null,null,null,null,null,null,null,null,null,null,null,"0000/0/0",null,null,null,null,null,{"$f":"U42","v":"0000/0/0"},null,null,null,{"$f":"IF(AND($H42<>\"\",$U42<>\"\",$U42<>\"0000/0/0\"),\"入力済\",IF(AND($H42=\"\",OR($U42=\"\",$U42=\"0000/0/0\")),\"空白\",\"入力途中\"))","v":"空白"}]
[null,null,null,null,null,null,null,null,null,null,null,null,null,null,null,null,null,null,null,null,"0000/0/0",null,null,null,null,null,{"$f":"U43","v":"0000/0/0"},null,null,null,{"$f":"IF(AND($H43<>\"\",$U43<>\"\",$U43<>\"0000/0/0\"),\"入力済\",IF(AND($H43=\"\",OR($U43=\"\",$U43=\"0000/0/0\")),\"空白\",\"入力途中\"))","v":"空白"}]
[null,null,null,null,null,null,null,null,null,null,null,null,null,null,null,null,null,null,null,null,"0000/0/0",null,null,null,null,null,{"$f":"U44","v":"0000/0/0"},null,null,null,{"$f":"IF(AND($H44<>\"\",$U44<>\"\",$U44<>\"0000/0/0\"),\"入力済\",IF(AND($H44=\"\",OR($U44=\"\",$U44=\"0000/0/0\")),\"空白\",\"入力途中\"))","v":"空白"}]
[null,null,"（注１）教員ごとに作成すること。"]
[null,null,"（注２）精神保健福祉士実習演習担当教員講習会を修了した者については、当該講習会の修了証の写しを添付すること。"]
[null,null,"（注３）「資格・免許・学位」欄に記載した資格等については、当該資格証等の写しを添付すること。"]
[null,null,"（注４）実務経験の対象となる業務は、「指定施設における業務の範囲等について」（平成23年８月５日障発0805第４号）を参照のこと。"]
["★指針該当番号　選択肢"]
["４－（３）－ア",null,null,null,"学校教育法（昭和２２年法律第２６号）に基づく大学（大学院及び短期大学を含む）及びこれらに準ずる教育施設において、教授、准教授、助教又は講師（非常勤を含む。）として、精神保健福祉士の養成に係る実習又は演習の指導に関し５年以上の経験を有する者"]
["４－（３）－イ",null,null,null,"学校教育法に基づく専修学校の専門課程又は各種学校の専任教員として、精神保健福祉士の養成に係る実習又は演習の指導に関し５年以上の経験を有する者"]
["４－（３）－ウ",null,null,null,"精神保健福祉士の資格を取得した後、相談援助の業務に５年以上従事した経験を有する者"]
["４－（３）－エ",null,null,null,"精神保健福祉士実習演習担当教員講習会を修了した者その他その者に準ずるものとして厚生労働大臣が別に定める者"]
["４－（３）－オ",null,null,null,"学校教育法の一部を改正する法律（平成１７年法律第８３号）による改正前の学校教育法第５８条第７項の助教授の職にあった者は、アの規定の適用については准教授の職にあった者とみなすこと。"]
["４－（３）－カ",null,null,null,"社会福祉に関する科目を定める省令（平成２０年文部科学省令・厚生労働省令第３号）第４条第１項第２号イからニまでに掲げる者のいずれかに該当する者（ただし、ソーシャルワーク演習に限る。）"]
["※４－（３）－カは令和3年4月１日以降のカリキュラムのみ該当"]
[]
["★社会福祉に関する科目を定める省令（平成２０年文部科学省令・厚生労働省令第３号）第４条第１項第２号イからニまでに掲げる者のいずれかに該当する者"]
["第４条第１項第２号イ",null,null,null,"学校教育法（昭和二十二年法律第二十六号）に基づく大学（大学院及び短期大学を含む。）又はこれに準ずる教育施設において、教授、准教授、助教又は講師として、社会福祉士の養成に係る実習又は演習の指導に関し五年以上の経験を有する者"]
["第４条第１項第２号ロ",null,null,null,"学校教育法に基づく専修学校の専門課程の専任教員として、社会福祉士の養成に係る実習又は演習の指導に関し五年以上の経験を有する者"]
["第４条第１項第２号ハ",null,null,null,"社会福祉士の資格を取得した後、相談援助の業務に五年以上従事した経験を有する者"]
["第４条第１項第２号二",null,null,null,"社会福祉士の養成に係る実習及び演習の教員として必要な知識及び技能を修得させるために行う講習会であって、厚生労働大臣が別に定める基準を満たすものとしてあらかじめ厚生労働大臣に届け出られたものを修了した者その他その者に準ずるものとして厚生労働大臣が別に定める者"]

{"sheet":"Format_実習施設等承諾書","index":7,"n_rows":24,"n_cols":80,"rows_kept":24,"cut":false,"hidden":true,"merged":[[22,2,22,7],[22,9,22,12],[22,14,22,17],[22,18,22,19],[19,2,19,7],[19,8,19,19],[20,2,20,7],[20,8,20,19],[21,2,21,7],[21,8,21,19],[23,2,23,7],[23,8,23,19],[7,2,7,7],[1,19,1,20],[2,3,2,18],[3,15,3,20],[5,1,5,9],[6,1,6,7],[8,12,8,13],[8,14,8,21],[9,12,9,13],[9,14,9,21],[10,12,10,13],[10,14,10,21],[13,5,13,19],[16,3,16,18]]}
[null,null,null,null,null,null,null,null,null,null,null,null,null,null,null,null,null,null,null,null,null,null,null,null,null,null,null,null,null,null,null,null,null,null,null,null,null,null,null,null,null,null,null,null,null,null,null,null,null,null,null,null,null,null,null,null,null,null,null,null,null,null,null,null,null,null,null,null,null,null,null,null,null,null,null,null,null,"■処理変数保持エリア"]
[null,null,null,null,null,null,null,null,null,null,null,null,null,null,null,null,null,null,"施設番号：",null,null,null,null,null,null,null,null,null,null,null,null,null,null,null,null,null,null,null,null,null,null,null,null,null,null,null,null,null,null,null,null,null,null,null,null,null,null,null,null,null,null,null,null,null,null,null,null,null,null,null,null,null,null,null,null,null,null,"実習受入可能時期行数",1,{"$f":"CA2","v":1}]
[null,null,null,"実習施設等承諾書"]
[null,null,null,null,null,null,null,null,null,null,null,null,null,null,null,"0000/0/0"]
[]
[]
[]
[null,null,null,null,null,null,null,null,"殿"]
[null,null,null,null,null,null,null,null,null,null,null,null,"設置者",null,"#=IF(ISERROR(INDEX('大学等確認申請書（変更届）'!$C$<<開始行>>:$AH$<<終了行>>,MATCH($T$2,'大学等確認申請書（変更届）'!$R$<<開始行>>:$R$<<終了行>>,0),11)),\n    \"\",\n       IF(INDEX('大学等確認申請書（変更届）'!$C$<<開始行>>:$AH$<<終了行>>,MATCH($T$2,'大学等確認申請書（変更届）'!$R$<<開始行>>:$R$<<終了行>>,0),11)<>\"\",\n          INDEX('大学等確認申請書（変更届）'!$C$<<開始行>>:$AH$<<終了行>>,MATCH($T$2,'大学等確認申請書（変更届）'!$R$<<開始行>>:$R$<<終了行>>,0),11)\n          )\n      )"]
[null,null,null,null,null,null,null,null,null,null,null,null,"所在地"]
[null,null,null,null,null,null,null,null,null,null,null,null,"代表者"]
[]
[]
[null,"　 下記施設は、",null,null,null,"#='大学等確認申請書（変更届）'!E3",null,null,null,null,null,null,null,null,null,null,null,null,null,null,"の"]
[null,"実習施設等として実習生を受け入れることを承諾いたします。"]
[]
[null,null,null,"記"]
[]
[]
[null,null,"施設名",null,null,null,null,null,"#=IF(ISERROR(INDEX('大学等確認申請書（変更届）'!$C$<<開始行>>:$AH$<<終了行>>,MATCH($T$2,'大学等確認申請書（変更届）'!$R$<<開始行>>:$R$<<終了行>>,0),1)),\n    \"\",\n       IF(INDEX('大学等確認申請書（変更届）'!$C$<<開始行>>:$AH$<<終了行>>,MATCH($T$2,'大学等確認申請書（変更届）'!$R$<<開始行>>:$R$<<終了行>>,0),1)<>\"\",\n          INDEX('大学等確認申請書（変更届）'!$C$<<開始行>>:$AH$<<終了行>>,MATCH($T$2,'大学等確認申請書（変更届）'!$R$<<開始行>>:$R$<<終了行>>,0),1)\n          )\n      )"]
[null,null,"施設種別",null,null,null,null,null,"#=IF(ISERROR(INDEX('大学等確認申請書（変更届）'!$C$<<開始行>>:$AH<<終了行>>,MATCH($T$2,'大学等確認申請書（変更届）'!$R$<<開始行>>:$R<<終了行>>,0),7)),\n    \"\",\n       IF(INDEX('大学等確認申請書（変更届）'!$C$<<開始行>>:$AH<<終了行>>,MATCH($T$2,'大学等確認申請書（変更届）'!$R$<<開始行>>:$R<<終了行>>,0),7)<>\"\",\n          INDEX('大学等確認申請書（変更届）'!$C$<<開始行>>:$AH<<終了行>>,MATCH($T$2,'大学等確認申請書（変更届）'!$R$<<開始行>>:$R<<終了行>>,0),7)\n          )\n      )"]
[null,null,"実習生の受入開始時期",null,null,null,null,null,"0000/0/0"]
[null,null,"実習受入可能時期",null,null,null,null,null,null,"0/0",null,null,null,"～","0/0",null,null,null,null,null,null,null,{"$f":"IF(OR($J23=\"\",$J23=\"0/0\",$O23=\"\",$O23=\"0/0\"),\"NG\",\"OK\")","v":"NG"}]
[null,null,"備考"]

{"sheet":"Format_実習施設等の概要","index":8,"n_rows":16,"n_cols":80,"rows_kept":16,"cut":false,"hidden":true,"merged":[[15,2,15,7],[15,8,15,18],[14,2,14,7],[14,11,14,13],[14,14,14,15],[14,17,14,18],[12,2,12,7],[12,8,12,18],[13,2,13,7],[13,11,13,13],[13,14,13,15],[13,17,13,18],[9,2,9,7],[9,8,9,18],[10,2,10,7],[10,8,10,18],[11,2,11,7],[11,8,11,18],[1,18,1,19],[3,3,3,18],[5,2,5,7],[5,8,5,18],[8,2,8,7],[8,8,8,18],[6,2,6,7],[7,2,7,7],[6,8,6,18],[7,8,7,18]]}
[null,null,null,null,null,null,null,null,null,null,null,null,null,null,null,null,null,null,null,null,null,null,null,null,null,null,null,null,null,null,null,null,null,null,null,null,null,null,null,null,null,null,null,null,null,null,null,null,null,null,null,null,null,null,null,null,null,null,null,null,null,null,null,null,null,null,null,null,null,null,null,null,null,null,null,null,null,"■処理変数保持エリア"]
[null,null,null,null,null,null,null,null,null,null,null,null,null,null,null,null,null,"施設番号：",null,null,null,null,null,null,null,null,null,null,null,null,null,null,null,null,null,null,null,null,null,null,null,null,null,null,null,null,null,null,null,null,null,null,null,null,null,null,null,null,null,null,null,null,null,null,null,null,null,null,null,null,null,null,null,null,null,null,null,"施設種別行数",1,{"$f":"CA2","v":1}]
[null,null,null,null,null,null,null,null,null,null,null,null,null,null,null,null,null,null,null,null,null,null,null,null,null,null,null,null,null,null,null,null,null,null,null,null,null,null,null,null,null,null,null,null,null,null,null,null,null,null,null,null,null,null,null,null,null,null,null,null,null,null,null,null,null,null,null,null,null,null,null,null,null,null,null,null,null,"複数施設区分","#=IF(ISERROR(INDEX('大学等確認申請書（変更届）'!$C$<<開始行>>:$AH$<<終了行>>,MATCH($S$2,'大学等確認申請書（変更届）'!$R$<<開始行>>:$R$<<終了行>>,0),6)),\n    \"\",\n       IF(INDEX('大学等確認申請書（変更届）'!$C$<<開始行>>:$AH$<<終了行>>,MATCH($S$2,'大学等確認申請書（変更届）'!$R$<<開始行>>:$R$<<終了行>>,0),6)<>\"\",\n          INDEX('大学等確認申請書（変更届）'!$C$<<開始行>>:$AH$<<終了行>>,MATCH($S$2,'大学等確認申請書（変更届）'!$R$<<開始行>>:$R$<<終了行>>,0),6)\n          )\n      )"]
[null,null,null,"実習施設等の概要"]
[]
[null,null,"設置者又は経営者名",null,null,null,null,null,"#=IF(ISERROR(INDEX('大学等確認申請書（変更届）'!$C$<<開始行>>:$AH$<<終了行>>,MATCH($S$2,'大学等確認申請書（変更届）'!$R$<<開始行>>:$R$<<終了行>>,0),11)),\n    \"\",\n       IF(INDEX('大学等確認申請書（変更届）'!$C$<<開始行>>:$AH$<<終了行>>,MATCH($S$2,'大学等確認申請書（変更届）'!$R$<<開始行>>:$R$<<終了行>>,0),11)<>\"\",\n          INDEX('大学等確認申請書（変更届）'!$C$<<開始行>>:$AH$<<終了行>>,MATCH($S$2,'大学等確認申請書（変更届）'!$R$<<開始行>>:$R$<<終了行>>,0),11)\n          )\n      )"]
[null,null,"設置者（所在地）",null,null,null,null,null,null,null,null,null,null,null,null,null,null,null,null,null,null,{"$f":"IF($I7=\"\",\"NG\",\"OK\")","v":"NG"}]
[null,null,"設置者（代表者名）",null,null,null,null,null,null,null,null,null,null,null,null,null,null,null,null,null,null,{"$f":"IF($I8=\"\",\"NG\",\"OK\")","v":"NG"}]
[null,null,"施設名",null,null,null,null,null,"#=IF(ISERROR(INDEX('大学等確認申請書（変更届）'!$C$<<開始行>>:$AH<<終了行>>,MATCH($S$2,'大学等確認申請書（変更届）'!$R$<<開始行>>:$R<<終了行>>,0),1)),\n    \"\",\n       IF(INDEX('大学等確認申請書（変更届）'!$C$<<開始行>>:$AH<<終了行>>,MATCH($S$2,'大学等確認申請書（変更届）'!$R$<<開始行>>:$R<<終了行>>,0),1)<>\"\",\n          INDEX('大学等確認申請書（変更届）'!$C$<<開始行>>:$AH<<終了行>>,MATCH($S$2,'大学等確認申請書（変更届）'!$R$<<開始行>>:$R<<終了行>>,0),1)\n          )\n      )"]
[null,null,"所在地",null,null,null,null,null,"#=IF(ISERROR(INDEX('大学等確認申請書（変更届）'!$C$<<開始行>>:$AH<<終了行>>,MATCH($S$2,'大学等確認申請書（変更届）'!$R$<<開始行>>:$R<<終了行>>,0),18)),\n    \"\",\n       IF(INDEX('大学等確認申請書（変更届）'!$C$<<開始行>>:$AH<<終了行>>,MATCH($S$2,'大学等確認申請書（変更届）'!$R$<<開始行>>:$R<<終了行>>,0),18)<>\"\",\n          INDEX('大学等確認申請書（変更届）'!$C$<<開始行>>:$AH<<終了行>>,MATCH($S$2,'大学等確認申請書（変更届）'!$R$<<開始行>>:$R<<終了行>>,0),18)\n          )\n      )"]
[null,null,"施設種別",null,null,null,null,null,"#=IF(ISERROR(INDEX('大学等確認申請書（変更届）'!$C$<<開始行>>:$AH<<終了行>>,MATCH($S$2,'大学等確認申請書（変更届）'!$R$<<開始行>>:$R<<終了行>>,0),7)),\n    \"\",\n       IF(INDEX('大学等確認申請書（変更届）'!$C$<<開始行>>:$AH<<終了行>>,MATCH($S$2,'大学等確認申請書（変更届）'!$R$<<開始行>>:$R<<終了行>>,0),7)<>\"\",\n          INDEX('大学等確認申請書（変更届）'!$C$<<開始行>>:$AH<<終了行>>,MATCH($S$2,'大学等確認申請書（変更届）'!$R$<<開始行>>:$R<<終了行>>,0),7)\n          )\n      )"]
[null,null,"上記以外の施設種別",null,null,null,null,null,null,null,null,null,null,null,null,null,null,null,null,null,null,{"$f":"IF(AND($I12=\"\",$CA$3=\"○\"),\"NG\",\"OK\")","v":"OK"}]
[null,null,"施設長名",null,null,null,null,null,null,null,null,null,null,null,null,null,null,null,null,null,null,{"$f":"IF($I13=\"\",\"NG\",\"OK\")","v":"NG"}]
[null,null,"実習指導者の人数",null,null,null,null,null,null,null,null,null,null,null,"名",null,null,null,null,null,null,{"$f":"IF($L14=\"\",\"NG\",\"OK\")","v":"NG"}]
[null,null,"実習受入人数",null,null,null,null,null,null,null,null,null,null,null,"名",null,null,null,null,null,null,{"$f":"IF($L15=\"\",\"NG\",\"OK\")","v":"NG"}]
[null,null,"備考"]

{"sheet":"Format_実習指導者に関する調書","index":9,"n_rows":56,"n_cols":80,"rows_kept":56,"cut":false,"hidden":true,"merged":[[48,27,48,30],[49,27,49,30],[50,27,50,30],[51,27,51,30],[52,27,52,30],[53,27,53,30],[54,27,54,30],[55,27,55,30],[39,27,39,30],[40,27,40,30],[41,27,41,30],[42,27,42,30],[43,27,43,30],[44,27,44,30],[45,27,45,30],[46,27,46,30],[47,27,47,30],[83,23,83,26],[84,23,84,26],[85,23,85,26],[88,23,88,26],[89,23,89,26],[78,23,78,26],[79,23,79,26],[80,23,80,26],[81,23,81,26],[82,23,82,26],[74,23,74,26],[75,23,75,26],[76,23,76,26],[77,23,77,26],[68,23,68,26],[69,23,69,26],[70,23,70,26],[71,23,71,26],[72,23,72,26],[65,23,65,26],[66,23,66,26],[67,23,67,26],[58,23,58,26],[59,23,59,26],[60,23,60,26],[61,23,61,26],[62,23,62,26],[73,23,73,26],[56,23,56,26],[57,23,57,26],[48,23,48,26],[49,23,49,26],[50,23,50,26],[51,23,51,26],[52,23,52,26],[63,23,63,26],[64,23,64,26],[54,23,54,26],[55,23,55,26],[5,26,5,29],[6,26,6,29],[22,11,23,19],[22,26,23,26],[22,27,23,27],[22,28,23,28],[22,29,23,29],[20,29,21,29],[53,23,53,26],[14,29,15,29],[11,26,11,29],[24,20,24,21],[24,23,24,24],[43,23,43,26],[44,23,44,26],[45,23,45,26],[46,23,46,26],[47,23,47,26],[38,23,38,26],[39,23,39,26],[40,23,40,26],[41,23,41,26],[42,23,42,26],[38,27,38,30],[0,24,0,25],[1,0,1,25],[3,0,3,3],[3,4,3,25],[4,0,4,3],[4,4,4,25],[6,15,6,19],[6,20,6,25],[7,0,7,3],[7,4,7,6],[7,7,7,9],[7,10,7,14],[7,15,7,19],[7,20,7,25],[5,0,5,3],[5,4,5,14],[6,0,6,3],[6,4,6,6],[6,7,6,9],[6,10,6,14],[11,2,24,2],[11,3,11,6],[11,7,11,10],[11,11,11,19],[11,20,11,25],[16,29,17,29],[22,3,23,6],[22,7,23,10],[16,3,17,6],[16,7,17,10],[16,11,17,19],[16,26,17,26],[16,27,17,27],[16,28,17,28],[24,3,24,19],[20,28,21,28],[18,3,19,6],[18,7,19,10],[18,11,19,19],[18,26,19,26],[18,27,19,27],[18,28,19,28],[18,29,19,29],[8,0,9,3],[8,4,9,25],[14,3,15,6],[14,7,15,10],[14,11,15,19],[14,26,15,26],[14,27,15,27],[14,28,15,28],[7,26,7,29],[12,29,13,29],[10,2,10,9],[10,10,10,13],[10,0,24,1],[12,3,13,6],[12,7,13,10],[12,11,13,19],[12,26,13,26],[12,27,13,27],[12,28,13,28],[20,3,21,6],[20,7,21,10],[20,11,21,19],[20,26,21,26],[20,27,21,27]]}
[null,null,null,null,null,null,null,null,null,null,null,null,null,null,null,null,null,null,null,null,null,null,null,"実習指導者調書頁番号",null,null,null,null,null,null,null,null,null,null,null,null,null,null,null,null,null,null,null,null,null,null,null,null,null,null,null,null,null,null,null,null,null,null,null,null,null,null,null,null,null,null,null,null,null,null,null,null,null,null,null,null,null,"■処理変数保持エリア"]
["実習指導者に関する調書",null,null,null,null,null,null,null,null,null,null,null,null,null,null,null,null,null,null,null,null,null,null,null,null,null,null,null,null,null,null,null,null,null,null,null,null,null,null,null,null,null,null,null,null,null,null,null,null,null,null,null,null,null,null,null,null,null,null,null,null,null,null,null,null,null,null,null,null,null,null,null,null,null,null,null,null,"職歴行数",6,{"$f":"CA2","v":6}]
[]
["実習施設名",null,null,null,"#=IF(ISERROR(INDEX('大学等確認申請書（変更届）'!$C$<<開始行>>:$AH$<<終了行>>,MATCH($Y$1,'大学等確認申請書（変更届）'!$AE$<<開始行>>:$AE$<<終了行>>,0),1)),\n    \"\",\n       IF(INDEX('大学等確認申請書（変更届）'!$C$<<開始行>>:$AH$<<終了行>>,MATCH($Y$1,'大学等確認申請書（変更届）'!$AE$<<開始行>>:$AE$<<終了行>>,0),1)<>\"\",\n          INDEX('大学等確認申請書（変更届）'!$C$<<開始行>>:$AH$<<終了行>>,MATCH($Y$1,'大学等確認申請書（変更届）'!$AE$<<開始行>>:$AE$<<終了行>>,0),1)\n          )\n      )"]
["氏　　名",null,null,null,"#=IF(ISERROR(INDEX('大学等確認申請書（変更届）'!$C$<<開始行>>:$AH<<終了行>>,MATCH($Y$1,'大学等確認申請書（変更届）'!$AE$<<開始行>>:$AE<<終了行>>,0),24)),\n    \"\",\n       IF(INDEX('大学等確認申請書（変更届）'!$C$<<開始行>>:$AH<<終了行>>,MATCH($Y$1,'大学等確認申請書（変更届）'!$AE$<<開始行>>:$AE<<終了行>>,0),24)<>\"\",\n          INDEX('大学等確認申請書（変更届）'!$C$<<開始行>>:$AH<<終了行>>,MATCH($Y$1,'大学等確認申請書（変更届）'!$AE$<<開始行>>:$AE<<終了行>>,0),24)\n          )\n      )",null,null,null,null,null,null,null,null,null,null,null,null,null,null,null,null,null,null,null,null,null,"■年月日和暦確認用"]
["生年月日",null,null,null,"0000/0/0",null,null,null,null,null,null,null,null,null,null,null,null,null,null,null,null,null,null,null,null,null,{"$f":"E6","v":"0000/0/0"},null,null,null,"■入力チェック欄",null,null,null,null,null,null,null,null,null,null,null,null,null,null,null,null,null,null,null,null,null,null,null,null,null,null,null,null,null,null,null,null,null,null,null,null,null,null,null,null,null,null,null,null,null,null,"突合検索キー","検証用Matchキー"]
["精神保健福祉士\n資格取得の有無",null,null,null,null,null,null,"登録番号",null,null,null,null,null,null,null,"登録年月日",null,null,null,null,"0000/0/0",null,null,null,null,null,{"$f":"U7","v":"0000/0/0"},null,null,null,{"$f":"IF(OR(AND($E7=\"１．取得\",$K7<>\"\",$U7<>\"\",$U7<>\"0000/0/0\"),$E7=\"２．未取得\"),\"精神入力OK\",\"精神入力NG\")","v":"精神入力NG"},null,null,null,null,null,null,null,null,null,null,null,null,null,null,null,null,null,null,null,null,null,null,null,null,null,null,null,null,null,null,null,null,null,null,null,null,null,null,null,null,null,null,null,null,null,null,{"$f":"IF($E$7=\"１．取得\",\n      SUBSTITUTE(SUBSTITUTE($K$7, \"　\", \"\"), \" \", \"\")&\"_\"&TEXT($U$7,\"yyyy/mm/dd\"),\n      \"\")","v":""},{"$f":"IF($E$7=\"１．取得\",\n      TEXT($E$6,\"yyyy/mm/dd\"),\n      \"\")","v":""},"精神保健福祉士"]
["精神保健福祉士実習指導者講習会",null,null,null,null,null,null,"修了番号",null,null,null,null,null,null,null,"修了年月日",null,null,null,null,"0000/0/0",null,null,null,null,null,{"$f":"U8","v":"0000/0/0"},null,null,null,{"$f":"IF(OR(AND($E8=\"１．修了\",$K8<>\"\",$U8<>\"\",$U8<>\"0000/0/0\"),$E8=\"２．未修了\"),\"講習入力OK\",\"講習入力NG\")","v":"講習入力NG"},null,null,null,null,null,null,null,null,null,null,null,null,null,null,null,null,null,null,null,null,null,null,null,null,null,null,null,null,null,null,null,null,null,null,null,null,null,null,null,null,null,null,null,null,null,null,{"$f":"IF($E$8=\"１．修了\",\n      SUBSTITUTE(SUBSTITUTE($K$8, \"　\", \"\"), \" \", \"\")&\"_\"&TEXT($U$8,\"yyyy\"),\n      \"\")","v":""},{"$f":"IF($E$8=\"１．修了\",\n      TEXT($E$6,\"yyyy/mm/dd\"),\n      \"\")","v":""},"実習指導者"]
["従事している\n業務内容"]
[null,null,null,null,null,null,null,null,null,null,null,null,null,null,null,null,null,null,null,null,null,null,null,null,null,null,null,null,null,null,"①"]
["実習指導者資格要件",null,"区分（注２）",null,null,null,null,null,null,null,"#=IF(ISERROR(INDEX('大学等確認申請書（変更届）'!$C$<<開始行>>:$AH<<終了行>>,MATCH($Y$1,'大学等確認申請書（変更届）'!$AE$<<開始行>>:$AE<<終了行>>,0),23)),\n    \"\",\n       IF(INDEX('大学等確認申請書（変更届）'!$C$<<開始行>>:$AH<<終了行>>,MATCH($Y$1,'大学等確認申請書（変更届）'!$AE$<<開始行>>:$AE<<終了行>>,0),23)<>\"\",\n          INDEX('大学等確認申請書（変更届）'!$C$<<開始行>>:$AH<<終了行>>,MATCH($Y$1,'大学等確認申請書（変更届）'!$AE$<<開始行>>:$AE<<終了行>>,0),23)\n          )\n      )",null,null,null,null,null,null,null,null,null,null,null,null,null,null,null,null,null,null,null,{"$f":"IF(AND($K$11=\"①\",$E$7=\"１．取得\",$E$8=\"１．修了\",U25>=3),\"OK\",IF($K$11<>\"①\",\"OK\",\"NG\"))","v":"OK"}]
[null,null,"職歴","名　　　称",null,null,null,"施設種別",null,null,null,"業務内容",null,null,null,null,null,null,null,null,"年　　　月",null,null,null,null,null,"合計"]
[null,null,null,null,null,null,null,null,null,null,null,null,null,null,null,null,null,null,null,null,null,"西暦",null,"年",null,"月",{"$f":"IF(Y14<Y13,W14-W13-1,W14-W13)","v":0},"年",{"$f":"IF(Y14<Y13,12+Y14-Y13,Y14-Y13)+IF(OR(Y13=0,Y14=0),0,1)","v":0},"月",{"$f":"IF(AND($D13<>\"\",$H13<>\"\",$L13<>\"\",$W13<>\"\",$W14<>\"\",$Y13<>\"\",$Y14<>\"\"),\"入力済\",IF(AND($D13=\"\",$H13=\"\",$L13=\"\",$W13=\"\",$W14=\"\",$Y13=\"\",$Y14=\"\"),\"空白\",\"入力途中\"))","v":"空白"}]
[null,null,null,null,null,null,null,null,null,null,null,null,null,null,null,null,null,null,null,null,"～","西暦",null,"年",null,"月"]
[null,null,null,null,null,null,null,null,null,null,null,null,null,null,null,null,null,null,null,null,null,"西暦",null,"年",null,"月",{"$f":"IF(Y16<Y15,W16-W15-1,W16-W15)","v":0},"年",{"$f":"IF(Y16<Y15,12+Y16-Y15,Y16-Y15)+IF(OR(Y15=0,Y16=0),0,1)","v":0},"月",{"$f":"IF(AND($D15<>\"\",$H15<>\"\",$L15<>\"\",$W15<>\"\",$W16<>\"\",$Y15<>\"\",$Y16<>\"\"),\"入力済\",IF(AND($D15=\"\",$H15=\"\",$L15=\"\",$W15=\"\",$W16=\"\",$Y15=\"\",$Y16=\"\"),\"空白\",\"入力途中\"))","v":"空白"}]
[null,null,null,null,null,null,null,null,null,null,null,null,null,null,null,null,null,null,null,null,"～","西暦",null,"年",null,"月"]
[null,null,null,null,null,null,null,null,null,null,null,null,null,null,null,null,null,null,null,null,null,"西暦",null,"年",null,"月",{"$f":"IF(Y18<Y17,W18-W17-1,W18-W17)","v":0},"年",{"$f":"IF(Y18<Y17,12+Y18-Y17,Y18-Y17)+IF(OR(Y17=0,Y18=0),0,1)","v":0},"月",{"$f":"IF(AND($D17<>\"\",$H17<>\"\",$L17<>\"\",$W17<>\"\",$W18<>\"\",$Y17<>\"\",$Y18<>\"\"),\"入力済\",IF(AND($D17=\"\",$H17=\"\",$L17=\"\",$W17=\"\",$W18=\"\",$Y17=\"\",$Y18=\"\"),\"空白\",\"入力途中\"))","v":"空白"}]
[null,null,null,null,null,null,null,null,null,null,null,null,null,null,null,null,null,null,null,null,"～","西暦",null,"年",null,"月"]
[null,null,null,null,null,null,null,null,null,null,null,null,null,null,null,null,null,null,null,null,null,"西暦",null,"年",null,"月",{"$f":"IF(Y20<Y19,W20-W19-1,W20-W19)","v":0},"年",{"$f":"IF(Y20<Y19,12+Y20-Y19,Y20-Y19)+IF(OR(Y19=0,Y20=0),0,1)","v":0},"月",{"$f":"IF(AND($D19<>\"\",$H19<>\"\",$L19<>\"\",$W19<>\"\",$W20<>\"\",$Y19<>\"\",$Y20<>\"\"),\"入力済\",IF(AND($D19=\"\",$H19=\"\",$L19=\"\",$W19=\"\",$W20=\"\",$Y19=\"\",$Y20=\"\"),\"空白\",\"入力途中\"))","v":"空白"}]
[null,null,null,null,null,null,null,null,null,null,null,null,null,null,null,null,null,null,null,null,"～","西暦",null,"年",null,"月"]
[null,null,null,null,null,null,null,null,null,null,null,null,null,null,null,null,null,null,null,null,null,"西暦",null,"年",null,"月",{"$f":"IF(Y22<Y21,W22-W21-1,W22-W21)","v":0},"年",{"$f":"IF(Y22<Y21,12+Y22-Y21,Y22-Y21)+IF(OR(Y21=0,Y22=0),0,1)","v":0},"月",{"$f":"IF(AND($D21<>\"\",$H21<>\"\",$L21<>\"\",$W21<>\"\",$W22<>\"\",$Y21<>\"\",$Y22<>\"\"),\"入力済\",IF(AND($D21=\"\",$H21=\"\",$L21=\"\",$W21=\"\",$W22=\"\",$Y21=\"\",$Y22=\"\"),\"空白\",\"入力途中\"))","v":"空白"}]
[null,null,null,null,null,null,null,null,null,null,null,null,null,null,null,null,null,null,null,null,"～","西暦",null,"年",null,"月"]
[null,null,null,null,null,null,null,null,null,null,null,null,null,null,null,null,null,null,null,null,null,"西暦",null,"年",null,"月",{"$f":"IF(Y24<Y23,W24-W23-1,W24-W23)","v":0},"年",{"$f":"IF(Y24<Y23,12+Y24-Y23,Y24-Y23)+IF(OR(Y23=0,Y24=0),0,1)","v":0},"月",{"$f":"IF(AND($D23<>\"\",$H23<>\"\",$L23<>\"\",$W23<>\"\",$W24<>\"\",$Y23<>\"\",$Y24<>\"\"),\"入力済\",IF(AND($D23=\"\",$H23=\"\",$L23=\"\",$W23=\"\",$W24=\"\",$Y23=\"\",$Y24=\"\"),\"空白\",\"入力途中\"))","v":"空白"}]
[null,null,null,null,null,null,null,null,null,null,null,null,null,null,null,null,null,null,null,null,"～","西暦",null,"年",null,"月"]
[null,null,null,"合　　　　　　計",null,null,null,null,null,null,null,null,null,null,null,null,null,null,null,null,{"$f":"SUM(AA13:AA25)+ROUNDDOWN(SUM(AC13:AC25)/12,0)","v":0},null,"年",{"$f":"SUM(AC13:AC25)-12*ROUNDDOWN(SUM(AC13:AC25)/12,0)","v":0},null,"月"]
[null,null,"（注１）実習指導者ごとに作成すること。"]
[null,null,"（注２）「区分」欄については、実習指導者が"]
[null,null,null,"・　精神保健福祉士の資格取得後、３年以上の実務経験を有する者であって、実習指導者講習会を修了した者にあっては①、"]
[null,null,null,"・　社会復帰調整官等としての実務経験を有する者にあっては②、"]
[null,null,null,"・　平成27年３月31日までの間に厚生労働大臣が認める講習会を修了した者にあっては③、"]
[null,null,null,"・　社会復帰調整官等としての実務経験を有する者にあっては②、"]
[null,null,null,"・　平成27年３月31日までの間に厚生労働大臣が認める講習会を修了した者にあっては③、"]
[null,null,null,"・　それら以外の者にあっては④"]
[null,null,"　　　をそれぞれ記載すること。"]
[null,null,"（注３）実習指導者講習会を修了した者については、当該講習会の修了証の写しを添付すること。"]
[null,null,"（注４）「精神保健福祉士資格取得の有無」欄に有と記載した場合については、精神保健福祉士登録証の写しを添付すること。"]
[null,null,"（注５）実務経験の対象となる業務は、「指定施設における業務の範囲等について」（平成23年８月５日障発0805第４号）を参照のこと。"]
[null,null,null,null,null,null,null,null,null,null,null,null,null,null,null,null,null,null,null,null,null,null,null,"★実習施設　施設種別",null,null,null,"★実習施設　施設種別_区分④"]
[null,null,null,null,null,null,null,null,null,null,null,null,null,null,null,null,null,null,null,null,null,null,null,"精神科病院等　※施設種別対応表参照",null,null,null,"精神科病院等　※施設種別対応表参照"]
[null,null,null,null,null,null,null,null,null,null,null,null,null,null,null,null,null,null,null,null,null,null,null,"市役所、区役所、町村役場",null,null,null,"市役所、区役所、町村役場"]
[null,null,null,null,null,null,null,null,null,null,null,null,null,null,null,null,null,null,null,null,null,null,null,"保健所、市町村保健センター",null,null,null,"保健所、市町村保健センター"]
[null,null,null,null,null,null,null,null,null,null,null,null,null,null,null,null,null,null,null,null,null,null,null,"障害児通所支援事業等　※施設種別対応表参照",null,null,null,"障害児通所支援事業等　※施設種別対応表参照"]
[null,null,null,null,null,null,null,null,null,null,null,null,null,null,null,null,null,null,null,null,null,null,null,"精神保健福祉センター",null,null,null,"精神保健福祉センター"]
[null,null,null,null,null,null,null,null,null,null,null,null,null,null,null,null,null,null,null,null,null,null,null,"救護施設、更生施設",null,null,null,"救護施設、更生施設"]
[null,null,null,null,null,null,null,null,null,null,null,null,null,null,null,null,null,null,null,null,null,null,null,"福祉に関する事務所",null,null,null,"福祉に関する事務所"]
[null,null,null,null,null,null,null,null,null,null,null,null,null,null,null,null,null,null,null,null,null,null,null,"知的障害者更生相談所",null,null,null,"知的障害者更生相談所"]
[null,null,null,null,null,null,null,null,null,null,null,null,null,null,null,null,null,null,null,null,null,null,null,"広域障害者職業センター等　※施設種別対応表参照",null,null,null,"広域障害者職業センター等　※施設種別対応表参照"]
[null,null,null,null,null,null,null,null,null,null,null,null,null,null,null,null,null,null,null,null,null,null,null,"地域包括支援センター",null,null,null,"地域包括支援センター"]
[null,null,null,null,null,null,null,null,null,null,null,null,null,null,null,null,null,null,null,null,null,null,null,"保護観察所、更生保護施設",null,null,null,"保護観察所、更生保護施設"]
[null,null,null,null,null,null,null,null,null,null,null,null,null,null,null,null,null,null,null,null,null,null,null,"ホームレス自立支援事業を実施する施設",null,null,null,"ホームレス自立支援事業を実施する施設"]
[null,null,null,null,null,null,null,null,null,null,null,null,null,null,null,null,null,null,null,null,null,null,null,"発達障害者支援センター",null,null,null,"発達障害者支援センター"]
[null,null,null,null,null,null,null,null,null,null,null,null,null,null,null,null,null,null,null,null,null,null,null,"障害福祉サービス事業(生活介護等）※施設種別対応表参照",null,null,null,"障害福祉サービス事業(生活介護等）※施設種別対応表参照"]
[null,null,null,null,null,null,null,null,null,null,null,null,null,null,null,null,null,null,null,null,null,null,null,"精神障害者が住み慣れた地域を拠点とし、本人の意向に即して、本人が充実した生活を送ることができるよう、関係機関の連携の下で、医療、福祉等の支援を行うという観点から、統合失調症を始めとする入院患者の減少及び地域生活への移行に向けた支援並びに地域生活を継続するための支援を推進する事業を実施する施設",null,null,null,"精神障害者が住み慣れた地域を拠点とし、本人の意向に即して、本人が充実した生活を送ることができるよう、関係機関の連携の下で、医療、福祉等の支援を行うという観点から、統合失調症を始めとする入院患者の減少及び地域生活への移行に向けた支援並びに地域生活を継続するための支援を推進する事業を実施する施設"]
[null,null,null,null,null,null,null,null,null,null,null,null,null,null,null,null,null,null,null,null,null,null,null,"いじめ、不登校、暴力行為、児童虐待など生徒指導上の課題に対応するため、教育分野に関する知識に加えて、社会福祉等の専門的な知識・技術を用いて、児童生徒の置かれた様々な環境に働きかけて支援を行うスクールソーシャルワーカーを配置し、教育相談体制を整備する事業を実施する施設",null,null,null,"いじめ、不登校、暴力行為、児童虐待など生徒指導上の課題に対応するため、教育分野に関する知識に加えて、社会福祉等の専門的な知識・技術を用いて、児童生徒の置かれた様々な環境に働きかけて支援を行うスクールソーシャルワーカーを配置し、教育相談体制を整備する事業を実施する施設"]
[null,null,null,null,null,null,null,null,null,null,null,null,null,null,null,null,null,null,null,null,null,null,null,"厚生労働大臣が認める施設又は事業　※要個別認定",null,null,null,"厚生労働大臣が認める施設又は事業　※要個別認定"]
[null,null,null,null,null,null,null,null,null,null,null,null,null,null,null,null,null,null,null,null,null,null,null,null,null,null,null,"その他"]

{"sheet":"Config","index":10,"n_rows":65,"n_cols":30,"rows_kept":65,"cut":false,"hidden":true,"merged":[]}
["定数情報一覧(P_objConstTBL)",null,null,null,null,null,null,null,"出力メッセージ一覧(P_objCheckMessage)",null,null,null,"チェック事項追加テーブル(P_objCheckADDTBL)",null,null,null,null,null,null,null,"カリキュラム区分",null,null,null,null,null,"出力帳票一覧（P_objNeedReportList）"]
["削除（共通定数・変数宣言へ記載する）",null,null,null,null,null,null,null,null,null,null,null,null,null,null,null,null,null,null,null,null,null,null,null,null,null,"現在未利用"]
[null,null,null,null,null,null,null,null,null,null,null,null,null,null,null,null,null,null,null,null,null,null,null,null,null,null,"判定条件","※Like検索",null,"※出力された帳票"]
[null,null,"シート名","項目名","値","定数情報記載行番号","値解説",null,"CheckLogicID","チェック結果","備考（出力メッセージ）",null,"書類名","チェック分類","チェック事項","CheckLogicID_大学","CheckLogicID_本省","帳票No","処理No",null,"カリキュラム区分",null,null,null,null,null,"欄名","変更区分","変更箇所","判定結果"]
[null,null,"全般","ブック保護パスワード","RPA_0000",{"$f":"ROW()-ROW(P_objConstTBL[[#Headers],[定数情報記載行番号]])","v":1},"ブックに付与されたパスワード",null,0,"NG","「鏡文」シートをご確認頂き、必須項目（セル色がオレンジ・青となっている項目）を入力してください。",null,"教員に関する調書","-","必須項目は入力されているか",20,null,3,20,null,"新カリ",null,null,null,null,null,"大学等確認変更届","*","１　名　称","変更があったことがわかる書類（変更の承認された理事会の議事録等）"]
[null,null,"全般","シート保護パスワード","RPA_0000",{"$f":"ROW()-ROW(P_objConstTBL[[#Headers],[定数情報記載行番号]])","v":2},"シートに付与されたパスワード",null,0,"OK","-",null,"教員に関する調書","-","精神保健福祉士資格を有する場合、登録番号・登録年月日を記入しているか",21,null,3,21,null,null,null,null,null,null,null,"大学等確認変更届","*","２　住　所","変更があったことがわかる書類（変更の承認された理事会の議事録等）"]
[null,null,"変更箇所の概要","大学等確認変更届行数(最大)",3000,{"$f":"ROW()-ROW(P_objConstTBL[[#Headers],[定数情報記載行番号]])","v":3},"行編集可な最大,最小範囲",null,1,"NG","「変更箇所の概要」シートをご確認頂き、必須項目（セル色がオレンジ・青となっている項目）を入力してください。",null,"教員に関する調書","-","基礎・実習・演習講習会がそれぞれ\"修了\"の場合、修了番号・終了年月日を記入しているか",23,null,3,23,null,null,null,null,null,null,null,"大学等確認変更届","*","３　設置者","変更があったことがわかる書類（変更の承認された理事会の議事録等）"]
[null,null,"変更箇所の概要","大学等確認変更届行数(最小)",3,{"$f":"ROW()-ROW(P_objConstTBL[[#Headers],[定数情報記載行番号]])","v":4},"行編集可な最大,最小範囲",null,1,"OK","-",null,"教員に関する調書","４-（３）-ア","指針該当番号４-（３）-アの場合、\n　精神保健福祉士の養成に係る実習又は演習の指導に関し、大学等において5年以上の経験があるか",25,null,3,25,null,null,null,null,null,null,null,"大学等確認変更届","*","４　設置年月日","変更があったことがわかる書類（変更の承認された理事会の議事録等）"]
[null,null,"変更箇所の概要","教員行数(最大)",3000,{"$f":"ROW()-ROW(P_objConstTBL[[#Headers],[定数情報記載行番号]])","v":5},"行編集可な最大,最小範囲",null,2,"NG","「大学等確認変更届」シートをご確認頂き、必須項目（セル色がオレンジ・青となっている項目）を入力してください。",null,"教員に関する調書","４-（３）-イ","指針該当番号４-（３）-イの場合、\n　学校教育法に基づく専修学校の専門課程又は各種学校の専任教員として、精神保健福祉士の養成に係る実習又は演習の指導に関し５年以上の経験があるか",26,null,3,27,null,null,null,null,null,null,null,"大学等確認変更届","*","５　定員等","変更があったことがわかる書類（変更の承認された理事会の議事録等）"]
[null,null,"変更箇所の概要","教員行数(最小)",3,{"$f":"ROW()-ROW(P_objConstTBL[[#Headers],[定数情報記載行番号]])","v":6},"行編集可な最大,最小範囲",null,2,"OK","-",null,"教員に関する調書","４-（３）-ウ","指針該当番号４-（３）-ウの場合、\n　精神保健福祉士資格を取得した後、相談援助の業務に５年以上従事した経験があるか",27,null,3,29,null,null,null,null,null,null,null,"大学等確認変更届","*","６　学校等の長の氏名","変更があったことがわかる書類（変更の承認された理事会の議事録等）"]
[null,null,"変更箇所の概要","実習施設行数(最大)",3000,{"$f":"ROW()-ROW(P_objConstTBL[[#Headers],[定数情報記載行番号]])","v":7},"行編集可な最大,最小範囲",null,3,"確認","指定科目等に係る開講科目の名称DBでは科目名称の有効性を確認できませんでした。\nお手数ですが、通達文章の写しを入手頂き、審査して下さい。",null,"教員に関する調書","４-（３）-カ","指針該当番号４-（３）-カを選択した場合、\n　「指針該当番号を選択（社会福祉に関する科目を定める省令第４条第１項第２号イからニ）」のいずれかを選択しているか",28,null,3,30,null,null,null,null,null,null,null,"大学等確認変更届","*","10　設備","変更があったことがわかる書類（変更の承認された理事会の議事録等）"]
[null,null,"変更箇所の概要","実習施設行数(最小)",7,{"$f":"ROW()-ROW(P_objConstTBL[[#Headers],[定数情報記載行番号]])","v":8},"行編集可な最大,最小範囲",null,3,"OK","-",null,"教員に関する調書","４-（３）-エ","指針該当番号４-（３）-エを選択した場合、\n要件を満たしているか。（基礎講習修了有無）",29,null,3,31,null,null,null,null,null,null,null,"実習演習科目担当教員","追加","*","教員に関する調書"]
[null,null,"変更箇所の概要","実習指導者行数(最大)",3000,{"$f":"ROW()-ROW(P_objConstTBL[[#Headers],[定数情報記載行番号]])","v":9},"行編集可な最大,最小範囲",null,4,"NG","「大学確認変更届」の調書出力が○となっているものと実際に出力されている調書が一致しません。以下該当調書を確認してください。",null,"教員に関する調書","４-（３）-エ","指針該当番号４-（３）-エを選択した場合、\n要件を満たしているか。（演習講習修了有無）",30,null,3,32,null,null,null,null,null,null,null,"実習演習科目担当教員","追加","*","実習計画（実習巡回計画表）"]
[null,null,"変更箇所の概要","実習指導者行数(最小)",7,{"$f":"ROW()-ROW(P_objConstTBL[[#Headers],[定数情報記載行番号]])","v":10},"行編集可な最大,最小範囲",null,4,"OK","-",null,"教員に関する調書","４-（３）-エ","指針該当番号４-（３）-エを選択した場合、\n要件を満たしているか。（実習講習修了有無）",31,null,3,33,null,null,null,null,null,null,null,"実習演習科目担当教員","追加","*","社会福祉士実習演習講習会の修了証の写し（４－３ーカの場合）"]
[null,null,"変更箇所の概要","提出書類一覧行数(最大)",3000,{"$f":"ROW()-ROW(P_objConstTBL[[#Headers],[定数情報記載行番号]])","v":11},"行編集可な最大,最小範囲",null,20,"NG","出力された「教員に関する調書」シートの\n必須項目（セル色がオレンジ・青となっている項目）を入力してください。",null,"教員に関する調書","４-（３）-ウ","指針該当番号４-（３）-ウを選択した場合、\n職歴欄は、精神保健福祉士取得の翌月から記載されているか。",32,null,3,35,null,null,null,null,null,null,null,"実習演習科目担当教員","変更","*","教員に関する調書"]
[null,null,"変更箇所の概要","提出書類一覧行数(最小)",7,{"$f":"ROW()-ROW(P_objConstTBL[[#Headers],[定数情報記載行番号]])","v":12},"行編集可な最大,最小範囲",null,20,"OK","-",null,"教員に関する調書","４-（３）-ア","指針該当番号４-（３）-アの場合、\n　精神保健福祉士の養成に係る実習又は演習の指導に関し、大学等において5年以上の経験があるか",33,null,3,26,null,null,null,null,null,null,null,"実習演習科目担当教員","変更","*","社会福祉士実習演習講習会の修了証の写し（４－３ーカの場合）"]
[null,null,"大学等確認変更届","7.専任教員行数(最大)",3000,{"$f":"ROW()-ROW(P_objConstTBL[[#Headers],[定数情報記載行番号]])","v":13},"行編集可な最大,最小範囲",null,21,"NG","精神保険士資格有無の選択が無いか、\"１．取得\"を選択した場合に、登録番号・登録年月日の記入がありません。\n出力された、「教員に関する調書」を参照し、正しく記入されているか、ご確認下さい。",null,"教員に関する調書","４-（３）-イ","指針該当番号４-（３）-イの場合、\n　学校教育法に基づく専修学校の専門課程又は各種学校の専任教員として、精神保健福祉士の養成に係る実習又は演習の指導に関し６年以上の経験があるか",34,null,3,28,null,null,null,null,null,null,null,"実習演習科目担当教員","削除","*","実習計画（実習巡回計画表）"]
[null,null,"大学等確認変更届","7.専任教員行数(最小)",8,{"$f":"ROW()-ROW(P_objConstTBL[[#Headers],[定数情報記載行番号]])","v":14},"行編集可な最大,最小範囲",null,21,"OK","-",null,"教員に関する調書","４-（３）-オ","指針該当番号４-（３）-オを選択した場合、要件を満たしているか\n（学校教育法の一部を改正する法律による改正前の学校教育法第５８条第７項の助教授の職にあった者は、アの規定の適用については准教授の職にあった者とみなすこと。）",35,null,3,34,null,null,null,null,null,null,null,"実習施設","追加","*","実習施設等承諾書"]
[null,null,"大学等確認変更届","8.実習教員行数(最大)",3000,{"$f":"ROW()-ROW(P_objConstTBL[[#Headers],[定数情報記載行番号]])","v":15},"行編集可な最大,最小範囲",null,22,"注意","精神保健福祉士資格DBでは、資格の有効性を確認できませんでした。\nお手数ですが、精神保健福祉士登録証の写しを入手頂き、審査して下さい。",null,"実習施設等承諾書","-","必須項目は入力されているか",40,null,5,40,null,null,null,null,null,null,null,"実習施設","追加","*","実習施設の概要"]
[null,null,"大学等確認変更届","8.実習教員行数(最小)",8,{"$f":"ROW()-ROW(P_objConstTBL[[#Headers],[定数情報記載行番号]])","v":16},"行編集可な最大,最小範囲",null,22,"OK","-",null,"実習施設等の概要","-","必須項目は入力されているか",60,null,6,60,null,null,null,null,null,null,null,"実習施設","追加","*","実習計画（実習巡回計画表）"]
[null,null,"大学等確認変更届","10.設備行数(最大)",3000,{"$f":"ROW()-ROW(P_objConstTBL[[#Headers],[定数情報記載行番号]])","v":17},"行編集可な最大,最小範囲",null,23,"NG","実習演習担当教員講習会の選択が無いか、\"１．修了\"を選択した場合に、修了番号・修了年月日の記入がありません。\n出力された、「教員に関する調書」を参照し、正しく記入されているか、ご確認下さい。",null,"実習指導者に関する調書","-","必須項目は入力されているか",80,null,8,80,null,null,null,null,null,null,null,"実習施設","追加","*","その他実習指導者の新規に係る書類"]
[null,null,"大学等確認変更届","10.設備行数(最小)",8,{"$f":"ROW()-ROW(P_objConstTBL[[#Headers],[定数情報記載行番号]])","v":18},"行編集可な最大,最小範囲",null,23,"OK","-",null,"実習指導者に関する調書","-","\"有\"の場合、登録番号・登録年月日を記入しているか",81,null,8,81,null,null,null,null,null,null,null,"実習施設","変更","*","実習施設等承諾書"]
[null,null,"大学等確認変更届","11.施設行数(最大)",3000,{"$f":"ROW()-ROW(P_objConstTBL[[#Headers],[定数情報記載行番号]])","v":19},"行編集可な最大,最小範囲",null,24,"注意","実習演習担当教員講習会DBでは、講習会受講有無を確認できませんでした。\nお手数ですが、精神保険福祉士実習演習担当講習会修了証の写しを入手頂き、審査して下さい。",null,"実習指導者に関する調書","-","\"修了\"の場合、修了番号・終了年月日を記入しているか",83,null,8,83,null,null,null,null,null,null,null,"実習施設","変更","*","実習施設の概要"]
[null,null,"大学等確認変更届","11.施設行数(最小)",16,{"$f":"ROW()-ROW(P_objConstTBL[[#Headers],[定数情報記載行番号]])","v":20},"行編集可な最大,最小範囲",null,24,"OK","-",null,"実習指導者に関する調書","①","区分①の場合、精神保健福祉士を取得、かつ講習会を終了、かつ職歴欄の合計年数が3年以上となっているか",85,null,8,85,null,null,null,null,null,null,null,"実習施設","変更","*","実習計画（実習巡回計画表）"]
[null,null,"教員に関する調書","教育歴・職歴行数(最大)",3000,{"$f":"ROW()-ROW(P_objConstTBL[[#Headers],[定数情報記載行番号]])","v":21},"行編集可な最大,最小範囲",null,25,"NG","指針該当番号４-（３）-アの場合、大学等において５年以上の経験が必要です。\n「教育歴・職歴」の合計年数が５年未満であった場合、審査不可です。再度見直して下さい。",null,"実習指導者に関する調書","②","区分②の場合、以下いずれかの実務経験があるか\n　社会復帰調整官、児童福祉司、精神保健福祉相談員、指導監督を行う所員、知的障害者福祉司",86,null,8,86,null,null,null,null,null,null,null,"実習施設","変更","*","その他実習指導者の新規に係る書類"]
[null,null,"教員に関する調書","教育歴・職歴行数(最小)",7,{"$f":"ROW()-ROW(P_objConstTBL[[#Headers],[定数情報記載行番号]])","v":22},"行編集可な最大,最小範囲",null,25,"OK","-",null,"実習指導者に関する調書","①","区分①の場合、職歴欄は精神保健福祉士取得の翌月から記載されているか。",87,null,8,90,null,null,null,null,null,null,null,"実習施設","削除","*","実習計画（実習巡回計画表）"]
[null,null,"教員に関する調書","資格・免許行数(最大)",3000,{"$f":"ROW()-ROW(P_objConstTBL[[#Headers],[定数情報記載行番号]])","v":23},"行編集可な最大,最小範囲",null,26,"NG","指針該当番号４-（３）-イの場合、精神保健福祉士の養成に係る実習演習指導について、５年以上の経験が必要です。\n「教育歴・職歴」の合計年数が５年未満であった場合、審査不可です。再度見直して下さい。",null,"実習指導者に関する調書","②","区分②の場合、以下いずれかの実務経験があるか\n　社会復帰調整官、児童福祉司、精神保健福祉相談員、指導監督を行う所員、知的障害者福祉司",88,null,8,87,null,null,null,null,null,null,null,"実習施設","追加","*","実習施設等の概要"]
[null,null,"教員に関する調書","資格・免許行数(最小)",3,{"$f":"ROW()-ROW(P_objConstTBL[[#Headers],[定数情報記載行番号]])","v":24},"行編集可な最大,最小範囲",null,26,"OK","-",null,"実習指導者に関する調書","③","区分③の場合、平成27年3月31日までの間に、精神保健福祉士実習指導者講習会に相当するものとして厚生労働大臣が認める研修の課程を修了した者であるか",89,null,8,88,null,null,null,null,null,null,null,"実習施設","追加","*","実習指導者に関する調書"]
[null,null,"教員に関する調書","学位行数(最大)",3000,{"$f":"ROW()-ROW(P_objConstTBL[[#Headers],[定数情報記載行番号]])","v":25},"行編集可な最大,最小範囲",null,27,"NG","指針該当番号４-（３）-ウの場合、精神保健福祉士資格を保有し、かつ相談援助の業務に５年以上従事する必要があります。\n「精神保健福祉士資格」を「1.取得」して「登録番号」と「登録年月日」に入力されており、かつ「教育歴・職歴」の合計年数が５年以上　とならない場合、審査不可です。再度見直して下さい。",null,"実習指導者に関する調書","④","区分④の場合、区分①ー③と同等の者であるか",90,null,8,89,null,null,null,null,null,null,null,"実習施設","変更","*","実習施設等の概要"]
[null,null,"教員に関する調書","学位行数(最小)",3,{"$f":"ROW()-ROW(P_objConstTBL[[#Headers],[定数情報記載行番号]])","v":26},"行編集可な最大,最小範囲",null,27,"OK","-",null,"教員に関する調書","-","精神保健福祉士の登録番号は有効か",99,22,3,22,null,null,null,null,null,null,null,"実習施設","変更","*","実習指導者に関する調書"]
[null,null,"教員に関する調書","研究・論文行数(最大)",3000,{"$f":"ROW()-ROW(P_objConstTBL[[#Headers],[定数情報記載行番号]])","v":27},"行編集可な最大,最小範囲",null,28,"NG","指針該当番号４－３－カを選択した場合は、「指針該当番号を選択（社会福祉に関する科目を定める省令第４条第１項第２号イからニ）」のいずれかを選択して下さい。",null,"教員に関する調書","-","基礎・実習・演習講習会の修了番号は有効か",99,24,3,24,null,null,null,null,null,null,null,"実習指導者","削除","*","実習施設等の概要"]
[null,null,"教員に関する調書","研究・論文行数(最小)",3,{"$f":"ROW()-ROW(P_objConstTBL[[#Headers],[定数情報記載行番号]])","v":28},"行編集可な最大,最小範囲",null,28,"確認","該当する指針該当番号（社会福祉に関する科目を定める省令第４条第１項第２号イからニ）に係る教育歴または業務内容のみ記載されているかご確認ください。\nまた社会福祉士登録証、社会福祉士実習演習担当教員講習会修了証等がある場合は、「資格・免許・社会講習会」欄に記載の上、登録証及び講習会修了証の写しを提出してください。",null,"実習指導者に関する調書","-","精神保健福祉士の登録番号は有効か",99,22,8,82]
[null,null,"実習施設等承諾書","実習受入可能時期行数(最大)",3000,{"$f":"ROW()-ROW(P_objConstTBL[[#Headers],[定数情報記載行番号]])","v":29},"行編集可な最大,最小範囲",null,29,"NG","指針該当番号４-（３）-エの場合で、かつ精神保健福祉士資格を保持していない場合、実習演習担当教員講習会（基礎）の修了が必要です。\n再度見直して下さい。",null,"実習指導者に関する調書","-","実習演習指導者講習会の修了番号は有効か",99,84,8,84]
[null,null,"実習施設等承諾書","実習受入可能時期行数(最小)",1,{"$f":"ROW()-ROW(P_objConstTBL[[#Headers],[定数情報記載行番号]])","v":30},"行編集可な最大,最小範囲",null,29,"OK","-"]
[null,null,"実習施設等の概要","施設種別行数(最大)",3000,{"$f":"ROW()-ROW(P_objConstTBL[[#Headers],[定数情報記載行番号]])","v":31},"行編集可な最大,最小範囲",null,30,"確認","指針該当番号４-（３）-エの場合で、担当科目に「実習」が含まれる場合、実習演習担当教員講習会（実習）の修了が必要です。\nチェックの結果、科目名に「実習」が含まれていないか、「実習」が含まれつつ修了が確認できませんでした。\n本省にて審査致しますので、入力内容を再度見直した上で、提出して下さい。"]
[null,null,"実習施設等の概要","施設種別行数(最小)",1,{"$f":"ROW()-ROW(P_objConstTBL[[#Headers],[定数情報記載行番号]])","v":32},"行編集可な最大,最小範囲",null,30,"OK","-"]
[null,null,"実習指導者に関する調書","職歴欄行数(最大)",3000,{"$f":"ROW()-ROW(P_objConstTBL[[#Headers],[定数情報記載行番号]])","v":33},"行編集可な最大,最小範囲",null,31,"確認","指針該当番号４-（３）-エの場合で、担当科目に「演習」が含まれる場合、実習演習担当教員講習会（演習）の修了が必要です。\nチェックの結果、科目名に「演習」が含まれていないか、「演習」が含まれつつ修了が確認できませんでした。\n本省にて審査致しますので、入力内容を再度見直した上で、提出して下さい。"]
[null,null,"実習指導者に関する調書","職歴欄行数(最小)",6,{"$f":"ROW()-ROW(P_objConstTBL[[#Headers],[定数情報記載行番号]])","v":34},"行編集可な最大,最小範囲",null,31,"OK","-"]
[null,null,"教員に関する調書","教育歴・職歴行数(最大)",3000,{"$f":"ROW()-ROW(P_objConstTBL[[#Headers],[定数情報記載行番号]])","v":35},"行編集可な最大,最小範囲",null,32,"NG","日付が取得できなかったか、精神保健福祉士の取得日以前から職歴が記載されています。\n職歴欄は、精神保健福祉士取得の翌月から記入して下さい。\n　※未取得の場合は対象外です\n　※1日に取得された場合は、当月より記載頂けます。"]
[null,null,"教員に関する調書","教育歴・職歴行数(最小)",2,{"$f":"ROW()-ROW(P_objConstTBL[[#Headers],[定数情報記載行番号]])","v":36},"行編集可な最大,最小範囲",null,32,"OK","-"]
[null,null,null,null,null,{"$f":"ROW()-ROW(P_objConstTBL[[#Headers],[定数情報記載行番号]])","v":37},null,null,33,"確認","ご提出頂く前に、再度ご確認ください。\n「教育内容又は業務内容」に肩書（教授・准教授・助教・講師（非常勤含む））の文言及び担当した「精神保健福祉士養成課程の実習演習科目」が記載しているか。\n※指針該当番号４-（３）-アに係る職歴のみ記載ください（他の指針該当番号に係る職歴は不要）。\n※精神保健福祉士養成課程の講義科目や社会福祉士養成課程の科目は非該当のため記載不要。"]
[null,null,null,null,null,{"$f":"ROW()-ROW(P_objConstTBL[[#Headers],[定数情報記載行番号]])","v":38},null,null,34,"確認","ご提出頂く前に、再度ご確認ください。\n「教育内容又は業務内容」に肩書「専任教員」の文言及び担当した「精神保健福祉士養成課程の実習演習科目」が記載しているか。\n※指針該当番号４-（３）-イに係る職歴のみ記載ください（他の指針該当番号に係る職歴は不要）。\n※精神保健福祉士養成課程の講義科目や社会福祉士養成課程の科目は非該当のため記載不要。"]
[null,null,null,null,null,{"$f":"ROW()-ROW(P_objConstTBL[[#Headers],[定数情報記載行番号]])","v":39},null,null,35,"確認","ご提出頂く前に、再度ご確認ください。\n「教育内容又は業務内容」に肩書「准教授」の文言及び担当した精神保健福祉士養成課程の実習演習科目が記載しているか。\n※指針該当番号４-（３）-オに係る職歴のみ記載ください（他の指針該当番号に係る職歴は不要）。\n※精神保健福祉士養成課程の講義科目や社会福祉士養成課程の科目は非該当のため記載不要。"]
[null,null,null,null,null,{"$f":"ROW()-ROW(P_objConstTBL[[#Headers],[定数情報記載行番号]])","v":40},null,null,40,"NG","出力された「実習施設等承諾書」シートの\n必須項目（セル色がオレンジ・青となっている項目）を入力してください。"]
[null,null,null,null,null,{"$f":"ROW()-ROW(P_objConstTBL[[#Headers],[定数情報記載行番号]])","v":41},null,null,40,"OK","-"]
[null,null,null,null,null,{"$f":"ROW()-ROW(P_objConstTBL[[#Headers],[定数情報記載行番号]])","v":42},null,null,60,"NG","出力された「実習施設等の概要」シートの\n必須項目（セル色がオレンジ・青となっている項目）を入力してください。"]
[null,null,null,null,null,null,null,null,60,"OK","-"]
[null,null,null,null,null,null,null,null,80,"NG","出力された「実習指導者に関する調書」シートの必須項目（セル色がオレンジ・青となっている項目）を入力してください。\n職歴は最低1つは必要です。"]
[null,null,null,null,null,null,null,null,80,"OK","-"]
[null,null,null,null,null,null,null,null,81,"NG","精神保険士資格有無の選択が無いか、\"１．取得\"を選択した場合に、登録番号・登録年月日の記入がありません。\n出力された、「実習指導者に関する調書」を参照し、正しく記入されているか、ご確認下さい。"]
[null,null,null,null,null,null,null,null,81,"OK","-"]
[null,null,null,null,null,null,null,null,83,"NG","実習指導者講習会の選択が無いか、\"１．修了\"を選択した場合に、修了番号・修了年月日の記入がありません。\n出力された、「実習指導者に関する調書」を参照し、が正しく記入されているか、ご確認下さい。"]
[null,null,null,null,null,null,null,null,83,"OK","-"]
[null,null,null,null,null,null,null,null,84,"注意","実習演習指導者講習会DBでは、講習会受講有無を確認できませんでした。\nお手数ですが、精神保険福祉士実習指導者講習会修了証の写しを入手頂き、審査して下さい。"]
[null,null,null,null,null,null,null,null,84,"OK","-"]
[null,null,null,null,null,null,null,null,85,"NG","区分が①の場合、精神保健福祉士資格を保有しており、かつ職歴が３年以上である必要があります。\n「精神保健福祉士資格」を「1.取得」して「登録番号」と「登録年月日」に入力されており、かつ「教育歴・職歴」の合計年数が３年以上　とならない場合、審査不可です。再度見直して下さい。"]
[null,null,null,null,null,null,null,null,85,"OK","-"]
[null,null,null,null,null,null,null,null,86,"NG","区分が②の場合、以下いずれかの実務経験が必要です。\n「職歴」の「業務内容」欄に以下いずれかの実務経験が無い場合、審査不可です。再度見直して下さい。\n※以下のいずれかの職種名を「職歴」の「業務内容」欄に記載ください。\n\n■必要な職歴\n社会復帰調整官、児童福祉司、精神保健福祉相談員、指導監督を行う所員、知的障害者福祉司"]
[null,null,null,null,null,null,null,null,86,"OK","-"]
[null,null,null,null,null,null,null,null,87,"NG","日付が取得できなかったか、精神保健福祉士の取得日以前から職歴が記載されています。\n職歴欄は、精神保健福祉士取得の翌月から記入して下さい。\n　※未取得の場合は対象外です\n　※1日に取得された場合は、当月より記載頂けます。"]
[null,null,null,null,null,null,null,null,87,"OK","-"]
[null,null,null,null,null,null,null,null,88,"確認","ご提出いただく前に、再度ご確認ください。\n区分が②の場合、以下の実務経験以外の職歴は削除下さい。\n（社会復帰調整官、児童福祉司、精神保健福祉相談員、指導監督を行う所員、知的障害者福祉司）\n"]
[null,null,null,null,null,null,null,null,89,"確認","ご提出いただく前に、再度ご確認ください。\n平成27年3月31日までの間に、精神保健福祉士実習指導者講習会に相当するものとして厚生労働大臣が認める研修の課程を修了したことが分かる資料の写しを別途提出下さい。"]
[null,null,null,null,null,null,null,null,90,"確認","ご提出いただく前に、再度ご確認ください。\n区分①ー③と同等の者であることを示す書類を別途提出下さい。"]
[null,null,null,null,null,null,null,null,99,"確認","ご提出頂く前に、再度ご確認ください。\n※審査中に、修了番号や文章番号等が有効か確認できなかった場合、証明書（写し）の提出を求める場合がございます。"]

{"sheet":"PullDown","index":11,"n_rows":27,"n_cols":22,"rows_kept":27,"cut":false,"hidden":true,"merged":[]}
["P_objChangeCagteg","P_objNotifChanges","P_objFaciliChanges",null,"P_objCurriculum",null,null,null,null,"大学等基本情報",null,null,null,null,"都道府県"]
["変更区分","変更届_変更箇所","実習施設_変更箇所",null,"科目名称","変更箇所","教員_変更箇所","実習指導者_変更箇所",null,"学校種別","修業年限","通学/通信","地方区分",null,"北海道","東北","関東","中部","近畿","中国","四国","九州"]
["追加","名称","施設名称",null,"医学概論","変更","氏名","氏名",null,"大学","4年","通学課程","北海道",null,"北海道","青森県","茨城県","新潟県","三重県","鳥取県","徳島県","福岡県"]
["変更","住所","施設種別",null,"心理学と心理的支援",null,"担当科目","その他",null,"短大","3年","通信課程","東北",null,null,"岩手県","栃木県","山梨県","福井県","島根県","香川県","佐賀県"]
["削除","設置者住所","実習生の受入開始時期",null,"社会学と社会システム",null,"専任又は兼任の別",null,null,"専門学校","2年",null,"関東",null,null,"宮城県","群馬県","長野県","滋賀県","岡山県","愛媛県","長崎県"]
[null,"設置者法人名","実習受入可能期間",null,"社会福祉の原理と政策",null,"その他",null,null,null,"1年",null,"中部",null,null,"秋田県","埼玉県","富山県","京都府","広島県","高知県","熊本県"]
[null,"設置者代表名","設置者又は経営者名",null,"地域福祉と包括的支援体制",null,null,null,null,null,null,null,"近畿",null,null,"山形県","千葉県","石川県","大阪府","山口県",null,"大分県"]
[null,"設置年月日","設置者（所在地）",null,"社会保障",null,null,null,null,null,null,null,"中国",null,null,"福島県","東京都","岐阜県","兵庫県",null,null,"宮崎県"]
[null,"1学年の定員","設置者（代表者名）",null,"障害者福祉",null,null,null,null,null,null,null,"四国",null,null,null,"神奈川県","静岡県","奈良県",null,null,"鹿児島県"]
[null,"学級数","施設所在地",null,"権利擁護を支える法制度",null,null,null,null,null,null,null,"九州",null,null,null,null,"愛知県","和歌山県",null,null,"沖縄県"]
[null,"1学級の定員","上記以外の施設種別",null,"刑事司法と福祉"]
[null,"学校等の長の氏名","施設長名",null,"社会福祉調査の基礎"]
[null,"開講科目名称","実習指導者の人数",null,"精神医学と精神医療"]
[null,"設備","実習受入人数",null,"現代の精神保健の課題と支援"]
[null,"その他","その他（承諾書）",null,"ソーシャルワークの基盤と専門職"]
[null,null,"その他（施設概要）",null,"精神保健福祉の原理"]
[null,null,null,null,"ソーシャルワークの理論と方法"]
[null,null,null,null,"ソーシャルワークの理論と方法（専門）"]
[null,null,null,null,"精神障害リハビリテーション論"]
[null,null,null,null,"精神保健福祉制度論"]
[null,null,null,null,"ソーシャルワーク演習【履修】"]
[null,null,null,null,"ソーシャルワーク演習【免除】"]
[null,null,null,null,"ソーシャルワーク演習（専門）"]
[null,null,null,null,"ソーシャルワーク実習指導"]
[null,null,null,null,"ソーシャルワーク実習"]
[]
[null,null,null,null,"※領域固定（VBA参照設定の為（VBAは仕様上構造化参照不可と考えられる））"]

{"sheet":"Message","index":12,"n_rows":0,"n_cols":0,"rows_kept":0,"cut":false,"hidden":true,"merged":[]}